Workbook

Sheet Tools
A1: Tools | B1: Availability | C1: Units per hour
A2: Tool 1 | B2: 0.7849884277 | C2: 1200
A3: Tool 2 | B3: 0.5042708329 | C3: 2600
A4: Tool 3 | B4: 0.6460802511 | C4: 2400
A5: Tool 4 | B5: 0.6868557166 | C5: 2223
A6: Tool 5 | B6: 0.7849884277 | C6: 1200
A7: Tool 6 | B7: 0.6678858026 | C7: 5800
A8: Tool 7 | B8: 0.6206211452 | C8: 6400
A9: Tool 8 | B9: 0.6013040143 | C9: 3920
A10: Tool 9 | B10: 0.7924961438 | C10: 480
A11: Tool 10 | B11: 0.8120563292 | C11: 1550
A12: Tool 11 | B12: 0.6230748485 | C12: 2032
A13: Tool 12 | B13: 0.6452160506 | C13: 4000
A14: Tool 13 | B14: 0.5136998462 | C14: 2400
A15: Tool 14 | B15: 0.66890845 | C15: 2300
A16: Tool 15 | B16: 0.6036651237 | C16: 4400
A17: Tool 16 | B17: 0.6779398148 | C17: 6800
A18: Tool 17 | B18: 0.7078015915 | C18: 6800
A19: Tool 18 | B19: 0.8241503729 | C19: 2800
A20: Tool 19 | B20: 0.8096682114 | C20: 10168
A21: Tool 20 | B21: 0.8096682114 | C21: 7847.642235

Sheet Product-tool
A1: Product | B1: Main tool
A2: AB0329160 | B2: Tool 10
A3: AB0513704 | B3: Tool 10
A4: AB0635046 | B4: Tool 10
A5: AB0975463 | B5: Tool 9
A6: AB1018910 | B6: Tool 10
A7: AB1305109 | B7: Tool 4
A8: AB2092362 | B8: Tool 10
A9: AB2569538 | B9: Tool 10
A10: AB2665756 | B10: Tool 6
A11: AB3534415 | B11: Tool 5
A12: AB3839653 | B12: Tool 10
A13: AB4133650 | B13: Tool 4
A14: AB4302436 | B14: Tool 10
A15: AB4952945 | B15: Tool 16
A16: AB5677022 | B16: Tool 7
A17: AB617476 | B17: Tool 18
A18: AB6803301 | B18: Tool 4
A19: AB6883086 | B19: Tool 9
A20: AF2334989 | B20: Tool 17
A21: AF2797300 | B21: Tool 9
A22: AF4224863 | B22: Tool 9
A23: AF4955974 | B23: Tool 9
A24: AF5847200 | B24: Tool 15
A25: AL1492544 | B25: Tool 6
A26: AL2661736 | B26: Tool 15
A27: AO0324556 | B27: Tool 16
A28: AO0414069 | B28: Tool 2
A29: AO2105290 | B29: Tool 15
A30: AO4874959 | B30: Tool 18
A31: AO5342652 | B31: Tool 7
A32: AO5834357 | B32: Tool 15
A33: AO8517171 | B33: Tool 14
A34: AO855133 | B34: Tool 7
A35: AP0171319 | B35: Tool 7
A36: AP0202155 | B36: Tool 15
A37: AP086256 | B37: Tool 7
A38: AP242884 | B38: Tool 16
A39: AP3078837 | B39: Tool 7
A40: AP352983 | B40: Tool 17
A41: AP3728500 | B41: Tool 2
A42: AP3951566 | B42: Tool 2
A43: AP4223947 | B43: Tool 2
A44: AP4745289 | B44: Tool 2
A45: AP4972828 | B45: Tool 7
A46: AP5614262 | B46: Tool 7
A47: AP5647883 | B47: Tool 15
A48: AP5897782 | B48: Tool 7
A49: AP853615 | B49: Tool 13
A50: AS0105077 | B50: Tool 12
A51: AS0125536 | B51: Tool 5
A52: AS0888075 | B52: Tool 13
A53: AS1143091 | B53: Tool 5
A54: AS5378181 | B54: Tool 13
A55: AS6815735 | B55: Tool 6
A56: BC1086722 | B56: Tool 6
A57: BC1381899 | B57: Tool 6
A58: BC1638233 | B58: Tool 6
A59: BC2465775 | B59: Tool 6
A60: BC2509115 | B60: Tool 6
A61: BC2965316 | B61: Tool 6
A62: BC3857293 | B62: Tool 15
A63: BC5752252 | B63: Tool 6
A64: BC6306450 | B64: Tool 5
A65: CC0084549 | B65: Tool 12
A66: CC0189122 | B66: Tool 20
A67: CC0921636 | B67: Tool 20
A68: CC092903 | B68: Tool 20
A69: CC2454697 | B69: Tool 20
A70: CC2566445 | B70: Tool 15
A71: CC2575 | B71: Tool 19
A72: CC2936183 | B72: Tool 20
A73: CC2965217 | B73: Tool 20
A74: CC3609599 | B74: Tool 4
A75: CC3979402 | B75: Tool 13
A76: CC4329116 | B76: Tool 19
A77: CC4618183 | B77: Tool 18
A78: CC4774419 | B78: Tool 12
A79: CC4941594 | B79: Tool 13
A80: CC4945569 | B80: Tool 4
A81: CC5387633 | B81: Tool 4
A82: CC5505924 | B82: Tool 19
A83: CC5603244 | B83: Tool 12
A84: CC5605066 | B84: Tool 8
A85: CC5646794 | B85: Tool 20
A86: CC5671451 | B86: Tool 19
A87: CC5798817 | B87: Tool 20
A88: CC5805891 | B88: Tool 4
A89: CC5803851 | B89: Tool 20
A90: CC5835642 | B90: Tool 12
A91: CC5844379 | B91: Tool 13
A92: CC5859307 | B92: Tool 15
A93: CC5877145 | B93: Tool 12
A94: CC5872620 | B94: Tool 19
A95: CC5949597 | B95: Tool 15
A96: CC5951749 | B96: Tool 19
A97: CC6069687 | B97: Tool 4
A98: CC6146771 | B98: Tool 19
A99: CC642531 | B99: Tool 19
A100: CC6514546 | B100: Tool 15
A101: CL1528731 | B101: Tool 15
A102: CL4179003 | B102: Tool 8
A103: CM2146129 | B103: Tool 8
A104: CM2144500 | B104: Tool 8
A105: CM2364748 | B105: Tool 4
A106: CM2573429 | B106: Tool 8
A107: CM267912 | B107: Tool 8
A108: CM2981742 | B108: Tool 10
A109: CM350886 | B109: Tool 8
A110: CM3509051 | B110: Tool 8
A111: CM5648071 | B111: Tool 19
A112: CM5946003 | B112: Tool 19
A113: CM5947011 | B113: Tool 4
A114: CP2759269 | B114: Tool 9
A115: CP3651771 | B115: Tool 2
A116: CP3782517 | B116: Tool 16
A117: CP5891290 | B117: Tool 12
A118: CP5915175 | B118: Tool 17
A119: CT0314214 | B119: Tool 20
A120: CT0686710 | B120: Tool 4
A121: CT0911438 | B121: Tool 13
A122: CT1153413 | B122: Tool 20
A123: CT1195860 | B123: Tool 19
A124: CT1344126 | B124: Tool 16
A125: CT1427436 | B125: Tool 16
A126: CT1422602 | B126: Tool 13
A127: CT1693771 | B127: Tool 19
A128: CT2356543 | B128: Tool 18
A129: CT2727204 | B129: Tool 11
A130: CT2748008 | B130: Tool 20
A131: CT2882108 | B131: Tool 19
A132: CT2899279 | B132: Tool 11
A133: CT2921184 | B133: Tool 15
A134: CT2976643 | B134: Tool 18
A135: CT3251740 | B135: Tool 18
A136: CT3327591 | B136: Tool 20
A137: CT3389630 | B137: Tool 3
A138: CT3513686 | B138: Tool 15
A139: CT3676279 | B139: Tool 18
A140: CT3847465 | B140: Tool 8
A141: CT3866790 | B141: Tool 20
A142: CT4394015 | B142: Tool 4
A143: CT4485707 | B143: Tool 19
A144: CT4625235 | B144: Tool 11
A145: CT4696984 | B145: Tool 12
A146: CT4766693 | B146: Tool 19
A147: CT4972454 | B147: Tool 20
A148: CT4983245 | B148: Tool 19
A149: CT4998062 | B149: Tool 19
A150: CT5306052 | B150: Tool 20
A151: CT5312249 | B151: Tool 19
A152: CT5387974 | B152: Tool 10
A153: CT5424793 | B153: Tool 12
A154: CT54540 | B154: Tool 15
A155: CT5587547 | B155: Tool 19
A156: CT5594793 | B156: Tool 18
A157: CT5668919 | B157: Tool 20
A158: CT5745169 | B158: Tool 12
A159: CT5745914 | B159: Tool 12
A160: CT5783436 | B160: Tool 20
A161: CT5802839 | B161: Tool 19
A162: CT5819298 | B162: Tool 20
A163: CT5829315 | B163: Tool 18
A164: CT5869387 | B164: Tool 19
A165: CT588550 | B165: Tool 11
A166: CT5885641 | B166: Tool 18
A167: CT593521 | B167: Tool 18
A168: CT5932817 | B168: Tool 20
A169: CT5982395 | B169: Tool 4
A170: CT6358073 | B170: Tool 20
A171: CT6438604 | B171: Tool 20
A172: CT6445143 | B172: Tool 20
A173: CT823663 | B173: Tool 7
A174: DA2128864 | B174: Tool 5
A175: DA5685201 | B175: Tool 1
A176: DP0098702 | B176: Tool 17
A177: DP087138 | B177: Tool 14
A178: DP1792938 | B178: Tool 15
A179: DP2403779 | B179: Tool 15
A180: DP2404504 | B180: Tool 3
A181: DP4769417 | B181: Tool 17
A182: DP4764853 | B182: Tool 18
A183: DP5007199 | B183: Tool 1
A184: DP5383174 | B184: Tool 1
A185: DP5698799 | B185: Tool 1
A186: DP5908334 | B186: Tool 1
A187: DP638679 | B187: Tool 18
A188: FR0061274 | B188: Tool 11
A189: FR009628 | B189: Tool 11
A190: FR0362571 | B190: Tool 11
A191: FR0614261 | B191: Tool 11
A192: FR0622263 | B192: Tool 11
A193: FR066151 | B193: Tool 4
A194: FR0667973 | B194: Tool 11
A195: FR0679719 | B195: Tool 10
A196: FR0696557 | B196: Tool 15
A197: FR0905418 | B197: Tool 15
A198: FR0919209 | B198: Tool 11
A199: FR0935436 | B199: Tool 11
A200: FR1379592 | B200: Tool 15
... 452 more rows

Sheet Orders
A1: Product | B1: Week1 | C1: Week2 | D1: Week3
A2: AB0329160 | B2: 85 | C2: 96 | D2: 85
A3: AB0513704 | B3: 83 | C3: 97 | D3: 84
A4: AB0635046 | B4: 2525 | C4: 2196 | D4: 2217
A5: AB0975463 | B5: 266 | C5: 443 | D5: 326
A6: AB1018910 | B6: 2926 | C6: 2434 | D6: 2522
A7: AB1305109 | B7: 41 | C7: 34 | D7: 35
A8: AB2092362 | B8: 8846 | C8: 10782 | D8: 9111
A9: AB2569538 | B9: 2252 | C9: 3750 | D9: 2756
A10: AB2665756 | B10: 166 | C10: 185 | D10: 163
A11: AB3534415 | B11: 250 | C11: 392 | D11: 295
A12: AB3839653 | B12: 2333 | C12: 2041 | D12: 2054
A13: AB4133650 | B13: 266 | C13: 328 | D13: 276
A14: AB4302436 | B14: 3658 | C14: 3968 | D14: 3554
A15: AB4952945 | B15: 673 | C15: 684 | D15: 634
A16: AB5677022 | B16: 13758 | C16: 11363 | D16: 11820
A17: AB617476 | B17: 16 | C17: 25 | D17: 19
A18: AB6803301 | B18: 258 | C18: 424 | D18: 313
A19: AB6883086 | B19: 73 | C19: 121 | D19: 90
A20: AF2334989 | B20: 12100 | C20: 17584 | D20: 13695
A21: AF2797300 | B21: 174 | C21: 162 | D21: 158
A22: AF4224863 | B22: 2818 | C22: 3939 | D22: 3122
A23: AF4955974 | B23: 5584 | C23: 7409 | D23: 6013
A24: AF5847200 | B24: 308 | C24: 372 | D24: 316
A25: AL1492544 | B25: 22381 | C25: 38180 | D25: 27791
A26: AL2661736 | B26: 289 | C26: 322 | D26: 285
A27: AO0324556 | B27: 44 | C27: 25 | D27: 33
A28: AO0414069 | B28: 233 | C28: 196 | D28: 202
A29: AO2105290 | B29: 2868 | C29: 1831 | D29: 2230
A30: AO4874959 | B30: 2171 | C30: 2998 | D30: 2389
A31: AO5342652 | B31: 886 | C31: 557 | D31: 685
A32: AO5834357 | B32: 2823 | C32: 2336 | D32: 2428
A33: AO8517171 | B33: 16 | C33: 20 | D33: 17
A34: AO855133 | B34: 1029 | C34: 999 | D34: 949
A35: AP0171319 | B35: 1023 | C35: 1164 | D35: 1018
A36: AP0202155 | B36: 5520 | C36: 5859 | D36: 5308
A37: AP086256 | B37: 8 | C37: 12 | D37: 9
A38: AP242884 | B38: 5312 | C38: 6856 | D38: 5637
A39: AP3078837 | B39: 657 | C39: 492 | D39: 543
A40: AP352983 | B40: 6108 | C40: 5249 | D40: 5336
A41: AP3728500 | B41: 1847 | C41: 1115 | D41: 1409
A42: AP3951566 | B42: 1000 | C42: 683 | D42: 797
A43: AP4223947 | B43: 1448 | C43: 941 | D43: 1133
A44: AP4745289 | B44: 66 | C44: 109 | D44: 80
A45: AP4972828 | B45: 8 | C45: 10 | D45: 8
A46: AP5614262 | B46: 49 | C46: 37 | D46: 41
A47: AP5647883 | B47: 5186 | C47: 5969 | D47: 5189
A48: AP5897782 | B48: 167 | C48: 123 | D48: 137
A49: AP853615 | B49: 501 | C49: 668 | D49: 541
A50: AS0105077 | B50: 2073 | C50: 2321 | D50: 2046
A51: AS0125536 | B51: 59793 | C51: 55508 | D51: 54031
A52: AS0888075 | B52: 4040 | C52: 2559 | D52: 3133
A53: AS1143091 | B53: 7650 | C53: 8932 | D53: 7708
A54: AS5378181 | B54: 445 | C54: 719 | D54: 536
A55: AS6815735 | B55: 11587 | C55: 14760 | D55: 12211
A56: BC1086722 | B56: 833 | C56: 1090 | D56: 891
A57: BC1381899 | B57: 833 | C57: 1319 | D57: 990
A58: BC1638233 | B58: 351 | C58: 549 | D58: 415
A59: BC2465775 | B59: 2275 | C59: 2994 | D59: 2439
A60: BC2509115 | B60: 6656 | C60: 8039 | D60: 6824
A61: BC2965316 | B61: 333 | C61: 549 | D61: 405
A62: BC3857293 | B62: 282 | C62: 300 | D62: 271
A63: BC5752252 | B63: 40 | C63: 48 | D63: 41
A64: BC6306450 | B64: 3683 | C64: 2516 | D64: 2936
A65: CC0084549 | B65: 7327 | C65: 4910 | D65: 5798
A66: CC0189122 | B66: 3600 | C66: 4264 | D66: 3654
A67: CC0921636 | B67: 22854 | C67: 16919 | D67: 18784
A68: CC092903 | B68: 8 | C68: 13 | D68: 10
A69: CC2454697 | B69: 4468 | C69: 3385 | D69: 3706
A70: CC2566445 | B70: 12992 | C70: 13138 | D70: 12208
A71: CC2575 | B71: 48191 | C71: 62385 | D71: 51220
A72: CC2936183 | B72: 3000 | C72: 2474 | D72: 2576
A73: CC2965217 | B73: 22535 | C73: 26858 | D73: 22945
A74: CC3609599 | B74: 14520 | C74: 29495 | D74: 16520
A75: CC3979402 | B75: 3004 | C75: 3280 | D75: 2928
A76: CC4329116 | B76: 90016 | C76: 68213 | D76: 74666
A77: CC4618183 | B77: 97882 | C77: 155147 | D77: 116396
A78: CC4774419 | B78: 1042 | C78: 1098 | D78: 999
A79: CC4941594 | B79: 1333 | C79: 1058 | D79: 1127
A80: CC4945569 | B80: 38325 | C80: 50338 | D80: 41049
A81: CC5387633 | B81: 11841 | C81: 9231 | D81: 9934
A82: CC5505924 | B82: 58 | C82: 82 | D82: 65
A83: CC5603244 | B83: 1800 | C83: 2557 | D83: 2012
A84: CC5605066 | B84: 342052 | C84: 508206 | D84: 391985
A85: CC5646794 | B85: 1666 | C85: 1262 | D85: 1382
A86: CC5671451 | B86: 2125 | C86: 2266 | D86: 2048
A87: CC5798817 | B87: 6633 | C87: 4442 | D87: 5248
A88: CC5805891 | B88: 2333 | C88: 1462 | D88: 1802
A89: CC5803851 | B89: 11284 | C89: 19115 | D89: 13953
A90: CC5835642 | B90: 8 | C90: 5 | D90: 7
A91: CC5844379 | B91: 8521 | C91: 6188 | D91: 6951
A92: CC5859307 | B92: 466 | C92: 447 | D92: 428
A93: CC5877145 | B93: 1289 | C93: 1822 | D93: 1437
A94: CC5872620 | B94: 73202 | C94: 111170 | D94: 84936
A95: CC5949597 | B95: 9112 | C95: 10148 | D95: 8968
A96: CC5951749 | B96: 99 | C96: 109 | D96: 97
A97: CC6069687 | B97: 133 | C97: 220 | D97: 163
A98: CC6146771 | B98: 2212 | C98: 2331 | D98: 2119
A99: CC642531 | B99: 1066 | C99: 727 | D99: 849
A100: CC6514546 | B100: 83 | C100: 124 | D100: 95
A101: CL1528731 | B101: 4131 | C101: 4911 | D101: 4201
A102: CL4179003 | B102: 1666 | C102: 2142 | D102: 1765
A103: CM2146129 | B103: 1278 | C103: 2044 | D103: 1528
A104: CM2144500 | B104: 5333 | C104: 8506 | D104: 6365
A105: CM2364748 | B105: 1097 | C105: 969 | D105: 970
A106: CM2573429 | B106: 24009 | C106: 17547 | D106: 19634
A107: CM267912 | B107: 89 | C107: 118 | D107: 96
A108: CM2981742 | B108: 12 | C108: 16 | D108: 13
A109: CM350886 | B109: 10 | C109: 5 | D109: 7
A110: CM3509051 | B110: 7378 | C110: 9157 | D110: 7670
A111: CM5648071 | B111: 812 | C111: 1289 | D111: 966
A112: CM5946003 | B112: 10073 | C112: 8478 | D112: 8723
A113: CM5947011 | B113: 12069 | C113: 7429 | D113: 9265
A114: CP2759269 | B114: 6820 | C114: 7604 | D114: 6717
A115: CP3651771 | B115: 9753 | C115: 12883 | D115: 10478
A116: CP3782517 | B116: 5371 | C116: 4711 | D116: 4734
A117: CP5891290 | B117: 133 | C117: 109 | D117: 114
A118: CP5915175 | B118: 437 | C118: 474 | D118: 425
A119: CT0314214 | B119: 43750 | C119: 73559 | D119: 53857
A120: CT0686710 | B120: 1916 | C120: 2909 | D120: 2223
A121: CT0911438 | B121: 1416 | C121: 1503 | D121: 1362
A122: CT1153413 | B122: 3056 | C122: 4681 | D122: 3563
A123: CT1195860 | B123: 1333 | C123: 2155 | D123: 1603
A124: CT1344126 | B124: 8333 | C124: 6528 | D124: 7005
A125: CT1427436 | B125: 218 | C125: 255 | D125: 220
A126: CT1422602 | B126: 4687 | C126: 5760 | D126: 4848
A127: CT1693771 | B127: 10749 | C127: 14208 | D127: 11552
A128: CT2356543 | B128: 3166 | C128: 3682 | D128: 3184
A129: CT2727204 | B129: 5266 | C129: 3837 | D129: 4302
A130: CT2748008 | B130: 533 | C130: 394 | D130: 438
A131: CT2882108 | B131: 113625 | C131: 97149 | D131: 99051
A132: CT2899279 | B132: 1666 | C132: 1880 | D132: 1651
A133: CT2921184 | B133: 13416 | C133: 16587 | D133: 13920
A134: CT2976643 | B134: 1093 | C134: 1726 | D134: 1297
A135: CT3251740 | B135: 5625 | C135: 6198 | D135: 5507
A136: CT3327591 | B136: 17116 | C136: 28330 | D136: 20875
A137: CT3389630 | B137: 811 | C137: 1331 | D137: 985
A138: CT3513686 | B138: 77 | C138: 87 | D138: 76
A139: CT3676279 | B139: 39925 | C139: 41163 | D139: 37860
A140: CT3847465 | B140: 103379 | C140: 79661 | D140: 86325
A141: CT3866790 | B141: 68308 | C141: 71912 | D141: 65420
A142: CT4394015 | B142: 24321 | C142: 36445 | D142: 22365
A143: CT4485707 | B143: 58 | C143: 63 | D143: 56
A144: CT4625235 | B144: 1233 | C144: 1919 | D144: 1451
A145: CT4696984 | B145: 6410 | C145: 7828 | D145: 6609
A146: CT4766693 | B146: 11965 | C146: 18145 | D146: 13872
A147: CT4972454 | B147: 49329 | C147: 44318 | D147: 43933
A148: CT4983245 | B148: 12800 | C148: 12234 | D148: 11719
A149: CT4998062 | B149: 416 | C149: 365 | D149: 367
A150: CT5306052 | B150: 240 | C150: 232 | D150: 221
A151: CT5312249 | B151: 8 | C151: 11 | D151: 9
A152: CT5387974 | B152: 8 | C152: 5 | D152: 6
A153: CT5424793 | B153: 2564 | C153: 2225 | D153: 2249
A154: CT54540 | B154: 18214 | C154: 19254 | D154: 17478
A155: CT5587547 | B155: 95 | C155: 79 | D155: 82
A156: CT5594793 | B156: 1050 | C156: 1639 | D156: 1238
A157: CT5668919 | B157: 496 | C157: 471 | D157: 453
A158: CT5745169 | B158: 203 | C158: 265 | D158: 217
A159: CT5745914 | B159: 1583 | C159: 1676 | D159: 1521
A160: CT5783436 | B160: 27 | C160: 33 | D160: 28
A161: CT5802839 | B161: 1166 | C161: 1504 | D161: 1237
A162: CT5819298 | B162: 201 | C162: 248 | D162: 209
A163: CT5829315 | B163: 333 | C163: 259 | D163: 279
A164: CT5869387 | B164: 7192 | C164: 10605 | D164: 8207
A165: CT588550 | B165: 722 | C165: 442 | D165: 553
A166: CT5885641 | B166: 3466 | C166: 2793 | D166: 2948
A167: CT593521 | B167: 58177 | C167: 72333 | D167: 60538
A168: CT5932817 | B168: 133 | C168: 142 | D168: 128
A169: CT5982395 | B169: 275 | C169: 297 | D169: 267
A170: CT6358073 | B170: 25 | C170: 27 | D170: 24
A171: CT6438604 | B171: 8 | C171: 12 | D171: 9
A172: CT6445143 | B172: 4491 | C172: 6643 | D172: 5134
A173: CT823663 | B173: 1083 | C173: 800 | D173: 889
A174: DA2128864 | B174: 4000 | C174: 4348 | D174: 3890
A175: DA5685201 | B175: 133 | C175: 86 | D175: 104
A176: DP0098702 | B176: 7779 | C176: 10028 | D176: 8249
A177: DP087138 | B177: 30014 | C177: 43142 | D177: 33764
A178: DP1792938 | B178: 26060 | C178: 37150 | D178: 29182
A179: DP2403779 | B179: 8874 | C179: 7921 | D179: 7881
A180: DP2404504 | B180: 583 | C180: 987 | D180: 721
A181: DP4769417 | B181: 1641 | C181: 1362 | D181: 1413
A182: DP4764853 | B182: 18911 | C182: 20587 | D182: 18407
A183: DP5007199 | B183: 40462 | C183: 39285 | D183: 37311
A184: DP5383174 | B184: 4916 | C184: 5230 | D184: 4732
A185: DP5698799 | B185: 995 | C185: 646 | D185: 779
A186: DP5908334 | B186: 35387 | C186: 37935 | D186: 34187
A187: DP638679 | B187: 95 | C187: 62 | D187: 75
A188: FR0061274 | B188: 72 | C188: 69 | D188: 66
A189: FR009628 | B189: 25110 | C189: 39750 | D189: 29838
A190: FR0362571 | B190: 13915 | C190: 17089 | D190: 14387
A191: FR0614261 | B191: 2283 | C191: 1534 | D191: 1809
A192: FR0622263 | B192: 533 | C192: 783 | D192: 607
A193: FR066151 | B193: 1372 | C193: 2349 | D193: 1707
A194: FR0667973 | B194: 1666 | C194: 1828 | D194: 1628
A195: FR0679719 | B195: 108 | C195: 63 | D195: 81
A196: FR0696557 | B196: 1852 | C196: 3161 | D196: 2301
A197: FR0905418 | B197: 2700 | C197: 3566 | D197: 2900
A198: FR0919209 | B198: 3368 | C198: 2233 | D198: 2655
A199: FR0935436 | B199: 117 | C199: 188 | D199: 141
A200: FR1379592 | B200: 822 | C200: 700 | D200: 716
... 293 more rows

Sheet Tools avail
A1: Available time (in hours) per time bucket | B1: =6*24 -> 144 | C1: =6*24 -> 144 | D1: =6*24 -> 144
A2: =Tools!A1 -> Tools | B2: =Orders!B1 -> Week1 | C2: =Orders!C1 -> Week2 | D2: =Orders!D1 -> Week3
A3: =Tools!A2 -> Tool 1 | B3: =$B$1*Tools!B2 -> 113.0383336 | C3: =$C$1*Tools!B2 -> 113.0383336 | D3: =$D$1*Tools!B2 -> 113.0383336
A4: =Tools!A3 -> Tool 2 | B4: =$B$1*Tools!B3 -> 72.61499994 | C4: =$C$1*Tools!B3 -> 72.61499994 | D4: =$D$1*Tools!B3 -> 72.61499994
A5: =Tools!A4 -> Tool 3 | B5: =$B$1*Tools!B4 -> 93.03555616 | C5: =$C$1*Tools!B4 -> 93.03555616 | D5: =$D$1*Tools!B4 -> 93.03555616
A6: =Tools!A5 -> Tool 4 | B6: =$B$1*Tools!B5 -> 98.9072232 | C6: =$C$1*Tools!B5 -> 98.9072232 | D6: =$D$1*Tools!B5 -> 98.9072232
A7: =Tools!A6 -> Tool 5 | B7: =$B$1*Tools!B6 -> 113.0383336 | C7: =$C$1*Tools!B6 -> 113.0383336 | D7: =$D$1*Tools!B6 -> 113.0383336
A8: =Tools!A7 -> Tool 6 | B8: =$B$1*Tools!B7 -> 96.17555558 | C8: =$C$1*Tools!B7 -> 96.17555558 | D8: =$D$1*Tools!B7 -> 96.17555558
A9: =Tools!A8 -> Tool 7 | B9: =$B$1*Tools!B8 -> 89.36944491 | C9: =$C$1*Tools!B8 -> 89.36944491 | D9: =$D$1*Tools!B8 -> 89.36944491
A10: =Tools!A9 -> Tool 8 | B10: =$B$1*Tools!B9 -> 86.58777806 | C10: =$C$1*Tools!B9 -> 86.58777806 | D10: =$D$1*Tools!B9 -> 86.58777806
A11: =Tools!A10 -> Tool 9 | B11: =$B$1*Tools!B10 -> 114.1194447 | C11: =$C$1*Tools!B10 -> 114.1194447 | D11: =$D$1*Tools!B10 -> 114.1194447
A12: =Tools!A11 -> Tool 10 | B12: =$B$1*Tools!B11 -> 116.9361114 | C12: =$C$1*Tools!B11 -> 116.9361114 | D12: =$D$1*Tools!B11 -> 116.9361114
A13: =Tools!A12 -> Tool 11 | B13: =$B$1*Tools!B12 -> 89.72277819 | C13: =$C$1*Tools!B12 -> 89.72277819 | D13: =$D$1*Tools!B12 -> 89.72277819
A14: =Tools!A13 -> Tool 12 | B14: =$B$1*Tools!B13 -> 92.91111128 | C14: =$C$1*Tools!B13 -> 92.91111128 | D14: =$D$1*Tools!B13 -> 92.91111128
A15: =Tools!A14 -> Tool 13 | B15: =$B$1*Tools!B14 -> 73.97277786 | C15: =$C$1*Tools!B14 -> 73.97277786 | D15: =$D$1*Tools!B14 -> 73.97277786
A16: =Tools!A15 -> Tool 14 | B16: =$B$1*Tools!B15 -> 96.32281679 | C16: =$C$1*Tools!B15 -> 96.32281679 | D16: =$D$1*Tools!B15 -> 96.32281679
A17: =Tools!A16 -> Tool 15 | B17: =$B$1*Tools!B16 -> 86.92777781 | C17: =$C$1*Tools!B16 -> 86.92777781 | D17: =$D$1*Tools!B16 -> 86.92777781
A18: =Tools!A17 -> Tool 16 | B18: =$B$1*Tools!B17 -> 97.62333333 | C18: =$C$1*Tools!B17 -> 97.62333333 | D18: =$D$1*Tools!B17 -> 97.62333333
A19: =Tools!A18 -> Tool 17 | B19: =$B$1*Tools!B18 -> 101.9234292 | C19: =$C$1*Tools!B18 -> 101.9234292 | D19: =$D$1*Tools!B18 -> 101.9234292
A20: =Tools!A19 -> Tool 18 | B20: =$B$1*Tools!B19 -> 118.6776537 | C20: =$C$1*Tools!B19 -> 118.6776537 | D20: =$D$1*Tools!B19 -> 118.6776537
A21: =Tools!A20 -> Tool 19 | B21: =$B$1*Tools!B20 -> 116.5922224 | C21: =$C$1*Tools!B20 -> 116.5922224 | D21: =$D$1*Tools!B20 -> 116.5922224
A22: =Tools!A21 -> Tool 20 | B22: =$B$1*Tools!B21 -> 116.5922224 | C22: =$C$1*Tools!B21 -> 116.5922224 | D22: =$D$1*Tools!B21 -> 116.5922224

Sheet Tool time needed per product
A1: =Orders!A1 -> Product | B1: Tool | C1: =Orders!B1 -> Week1 | D1: =Orders!C1 -> Week2 | E1: =Orders!D1 -> Week3
A2: =Orders!A2 -> AB0329160 | B2: =VLOOKUP(A2,'Product-tool'!A:B,2,0) -> Tool 10 | C2: =Orders!B2/VLOOKUP(B2,Tools!A:C,3,0) -> 0.05483870968 | D2: =Orders!C2/VLOOKUP(B2,Tools!A:C,3,0) -> 0.06193548387 | E2: =Orders!D2/VLOOKUP(B2,Tools!A:C,3,0) -> 0.05483870968
A3: =Orders!A3 -> AB0513704 | B3: =VLOOKUP(A3,'Product-tool'!A:B,2,0) -> Tool 10 | C3: =Orders!B3/VLOOKUP(B3,Tools!A:C,3,0) -> 0.0535483871 | D3: =Orders!C3/VLOOKUP(B3,Tools!A:C,3,0) -> 0.06258064516 | E3: =Orders!D3/VLOOKUP(B3,Tools!A:C,3,0) -> 0.05419354839
A4: =Orders!A4 -> AB0635046 | B4: =VLOOKUP(A4,'Product-tool'!A:B,2,0) -> Tool 10 | C4: =Orders!B4/VLOOKUP(B4,Tools!A:C,3,0) -> 1.629032258 | D4: =Orders!C4/VLOOKUP(B4,Tools!A:C,3,0) -> 1.416774194 | E4: =Orders!D4/VLOOKUP(B4,Tools!A:C,3,0) -> 1.430322581
A5: =Orders!A5 -> AB0975463 | B5: =VLOOKUP(A5,'Product-tool'!A:B,2,0) -> Tool 9 | C5: =Orders!B5/VLOOKUP(B5,Tools!A:C,3,0) -> 0.5541666667 | D5: =Orders!C5/VLOOKUP(B5,Tools!A:C,3,0) -> 0.9229166667 | E5: =Orders!D5/VLOOKUP(B5,Tools!A:C,3,0) -> 0.6791666667
A6: =Orders!A6 -> AB1018910 | B6: =VLOOKUP(A6,'Product-tool'!A:B,2,0) -> Tool 10 | C6: =Orders!B6/VLOOKUP(B6,Tools!A:C,3,0) -> 1.887741935 | D6: =Orders!C6/VLOOKUP(B6,Tools!A:C,3,0) -> 1.570322581 | E6: =Orders!D6/VLOOKUP(B6,Tools!A:C,3,0) -> 1.627096774
A7: =Orders!A7 -> AB1305109 | B7: =VLOOKUP(A7,'Product-tool'!A:B,2,0) -> Tool 4 | C7: =Orders!B7/VLOOKUP(B7,Tools!A:C,3,0) -> 0.01844354476 | D7: =Orders!C7/VLOOKUP(B7,Tools!A:C,3,0) -> 0.01529464687 | E7: =Orders!D7/VLOOKUP(B7,Tools!A:C,3,0) -> 0.01574448943
A8: =Orders!A8 -> AB2092362 | B8: =VLOOKUP(A8,'Product-tool'!A:B,2,0) -> Tool 10 | C8: =Orders!B8/VLOOKUP(B8,Tools!A:C,3,0) -> 5.707096774 | D8: =Orders!C8/VLOOKUP(B8,Tools!A:C,3,0) -> 6.956129032 | E8: =Orders!D8/VLOOKUP(B8,Tools!A:C,3,0) -> 5.878064516
A9: =Orders!A9 -> AB2569538 | B9: =VLOOKUP(A9,'Product-tool'!A:B,2,0) -> Tool 10 | C9: =Orders!B9/VLOOKUP(B9,Tools!A:C,3,0) -> 1.452903226 | D9: =Orders!C9/VLOOKUP(B9,Tools!A:C,3,0) -> 2.419354839 | E9: =Orders!D9/VLOOKUP(B9,Tools!A:C,3,0) -> 1.778064516
A10: =Orders!A10 -> AB2665756 | B10: =VLOOKUP(A10,'Product-tool'!A:B,2,0) -> Tool 6 | C10: =Orders!B10/VLOOKUP(B10,Tools!A:C,3,0) -> 0.02862068966 | D10: =Orders!C10/VLOOKUP(B10,Tools!A:C,3,0) -> 0.03189655172 | E10: =Orders!D10/VLOOKUP(B10,Tools!A:C,3,0) -> 0.02810344828
A11: =Orders!A11 -> AB3534415 | B11: =VLOOKUP(A11,'Product-tool'!A:B,2,0) -> Tool 5 | C11: =Orders!B11/VLOOKUP(B11,Tools!A:C,3,0) -> 0.2083333333 | D11: =Orders!C11/VLOOKUP(B11,Tools!A:C,3,0) -> 0.3266666667 | E11: =Orders!D11/VLOOKUP(B11,Tools!A:C,3,0) -> 0.2458333333
A12: =Orders!A12 -> AB3839653 | B12: =VLOOKUP(A12,'Product-tool'!A:B,2,0) -> Tool 10 | C12: =Orders!B12/VLOOKUP(B12,Tools!A:C,3,0) -> 1.50516129 | D12: =Orders!C12/VLOOKUP(B12,Tools!A:C,3,0) -> 1.316774194 | E12: =Orders!D12/VLOOKUP(B12,Tools!A:C,3,0) -> 1.32516129
A13: =Orders!A13 -> AB4133650 | B13: =VLOOKUP(A13,'Product-tool'!A:B,2,0) -> Tool 4 | C13: =Orders!B13/VLOOKUP(B13,Tools!A:C,3,0) -> 0.1196581197 | D13: =Orders!C13/VLOOKUP(B13,Tools!A:C,3,0) -> 0.1475483581 | E13: =Orders!D13/VLOOKUP(B13,Tools!A:C,3,0) -> 0.1241565452
A14: =Orders!A14 -> AB4302436 | B14: =VLOOKUP(A14,'Product-tool'!A:B,2,0) -> Tool 10 | C14: =Orders!B14/VLOOKUP(B14,Tools!A:C,3,0) -> 2.36 | D14: =Orders!C14/VLOOKUP(B14,Tools!A:C,3,0) -> 2.56 | E14: =Orders!D14/VLOOKUP(B14,Tools!A:C,3,0) -> 2.292903226
A15: =Orders!A15 -> AB4952945 | B15: =VLOOKUP(A15,'Product-tool'!A:B,2,0) -> Tool 16 | C15: =Orders!B15/VLOOKUP(B15,Tools!A:C,3,0) -> 0.09897058824 | D15: =Orders!C15/VLOOKUP(B15,Tools!A:C,3,0) -> 0.1005882353 | E15: =Orders!D15/VLOOKUP(B15,Tools!A:C,3,0) -> 0.09323529412
A16: =Orders!A16 -> AB5677022 | B16: =VLOOKUP(A16,'Product-tool'!A:B,2,0) -> Tool 7 | C16: =Orders!B16/VLOOKUP(B16,Tools!A:C,3,0) -> 2.1496875 | D16: =Orders!C16/VLOOKUP(B16,Tools!A:C,3,0) -> 1.77546875 | E16: =Orders!D16/VLOOKUP(B16,Tools!A:C,3,0) -> 1.846875
A17: =Orders!A17 -> AB617476 | B17: =VLOOKUP(A17,'Product-tool'!A:B,2,0) -> Tool 18 | C17: =Orders!B17/VLOOKUP(B17,Tools!A:C,3,0) -> 0.005714285714 | D17: =Orders!C17/VLOOKUP(B17,Tools!A:C,3,0) -> 0.008928571429 | E17: =Orders!D17/VLOOKUP(B17,Tools!A:C,3,0) -> 0.006785714286
A18: =Orders!A18 -> AB6803301 | B18: =VLOOKUP(A18,'Product-tool'!A:B,2,0) -> Tool 4 | C18: =Orders!B18/VLOOKUP(B18,Tools!A:C,3,0) -> 0.1160593792 | D18: =Orders!C18/VLOOKUP(B18,Tools!A:C,3,0) -> 0.1907332434 | E18: =Orders!D18/VLOOKUP(B18,Tools!A:C,3,0) -> 0.1408007197
A19: =Orders!A19 -> AB6883086 | B19: =VLOOKUP(A19,'Product-tool'!A:B,2,0) -> Tool 9 | C19: =Orders!B19/VLOOKUP(B19,Tools!A:C,3,0) -> 0.1520833333 | D19: =Orders!C19/VLOOKUP(B19,Tools!A:C,3,0) -> 0.2520833333 | E19: =Orders!D19/VLOOKUP(B19,Tools!A:C,3,0) -> 0.1875
A20: =Orders!A20 -> AF2334989 | B20: =VLOOKUP(A20,'Product-tool'!A:B,2,0) -> Tool 17 | C20: =Orders!B20/VLOOKUP(B20,Tools!A:C,3,0) -> 1.779411765 | D20: =Orders!C20/VLOOKUP(B20,Tools!A:C,3,0) -> 2.585882353 | E20: =Orders!D20/VLOOKUP(B20,Tools!A:C,3,0) -> 2.013970588
A21: =Orders!A21 -> AF2797300 | B21: =VLOOKUP(A21,'Product-tool'!A:B,2,0) -> Tool 9 | C21: =Orders!B21/VLOOKUP(B21,Tools!A:C,3,0) -> 0.3625 | D21: =Orders!C21/VLOOKUP(B21,Tools!A:C,3,0) -> 0.3375 | E21: =Orders!D21/VLOOKUP(B21,Tools!A:C,3,0) -> 0.3291666667
A22: =Orders!A22 -> AF4224863 | B22: =VLOOKUP(A22,'Product-tool'!A:B,2,0) -> Tool 9 | C22: =Orders!B22/VLOOKUP(B22,Tools!A:C,3,0) -> 5.870833333 | D22: =Orders!C22/VLOOKUP(B22,Tools!A:C,3,0) -> 8.20625 | E22: =Orders!D22/VLOOKUP(B22,Tools!A:C,3,0) -> 6.504166667
A23: =Orders!A23 -> AF4955974 | B23: =VLOOKUP(A23,'Product-tool'!A:B,2,0) -> Tool 9 | C23: =Orders!B23/VLOOKUP(B23,Tools!A:C,3,0) -> 11.63333333 | D23: =Orders!C23/VLOOKUP(B23,Tools!A:C,3,0) -> 15.43541667 | E23: =Orders!D23/VLOOKUP(B23,Tools!A:C,3,0) -> 12.52708333
A24: =Orders!A24 -> AF5847200 | B24: =VLOOKUP(A24,'Product-tool'!A:B,2,0) -> Tool 15 | C24: =Orders!B24/VLOOKUP(B24,Tools!A:C,3,0) -> 0.07 | D24: =Orders!C24/VLOOKUP(B24,Tools!A:C,3,0) -> 0.08454545455 | E24: =Orders!D24/VLOOKUP(B24,Tools!A:C,3,0) -> 0.07181818182
A25: =Orders!A25 -> AL1492544 | B25: =VLOOKUP(A25,'Product-tool'!A:B,2,0) -> Tool 6 | C25: =Orders!B25/VLOOKUP(B25,Tools!A:C,3,0) -> 3.858793103 | D25: =Orders!C25/VLOOKUP(B25,Tools!A:C,3,0) -> 6.582758621 | E25: =Orders!D25/VLOOKUP(B25,Tools!A:C,3,0) -> 4.791551724
A26: =Orders!A26 -> AL2661736 | B26: =VLOOKUP(A26,'Product-tool'!A:B,2,0) -> Tool 15 | C26: =Orders!B26/VLOOKUP(B26,Tools!A:C,3,0) -> 0.06568181818 | D26: =Orders!C26/VLOOKUP(B26,Tools!A:C,3,0) -> 0.07318181818 | E26: =Orders!D26/VLOOKUP(B26,Tools!A:C,3,0) -> 0.06477272727
A27: =Orders!A27 -> AO0324556 | B27: =VLOOKUP(A27,'Product-tool'!A:B,2,0) -> Tool 16 | C27: =Orders!B27/VLOOKUP(B27,Tools!A:C,3,0) -> 0.006470588235 | D27: =Orders!C27/VLOOKUP(B27,Tools!A:C,3,0) -> 0.003676470588 | E27: =Orders!D27/VLOOKUP(B27,Tools!A:C,3,0) -> 0.004852941176
A28: =Orders!A28 -> AO0414069 | B28: =VLOOKUP(A28,'Product-tool'!A:B,2,0) -> Tool 2 | C28: =Orders!B28/VLOOKUP(B28,Tools!A:C,3,0) -> 0.08961538462 | D28: =Orders!C28/VLOOKUP(B28,Tools!A:C,3,0) -> 0.07538461538 | E28: =Orders!D28/VLOOKUP(B28,Tools!A:C,3,0) -> 0.07769230769
A29: =Orders!A29 -> AO2105290 | B29: =VLOOKUP(A29,'Product-tool'!A:B,2,0) -> Tool 15 | C29: =Orders!B29/VLOOKUP(B29,Tools!A:C,3,0) -> 0.6518181818 | D29: =Orders!C29/VLOOKUP(B29,Tools!A:C,3,0) -> 0.4161363636 | E29: =Orders!D29/VLOOKUP(B29,Tools!A:C,3,0) -> 0.5068181818
A30: =Orders!A30 -> AO4874959 | B30: =VLOOKUP(A30,'Product-tool'!A:B,2,0) -> Tool 18 | C30: =Orders!B30/VLOOKUP(B30,Tools!A:C,3,0) -> 0.7753571429 | D30: =Orders!C30/VLOOKUP(B30,Tools!A:C,3,0) -> 1.070714286 | E30: =Orders!D30/VLOOKUP(B30,Tools!A:C,3,0) -> 0.8532142857
A31: =Orders!A31 -> AO5342652 | B31: =VLOOKUP(A31,'Product-tool'!A:B,2,0) -> Tool 7 | C31: =Orders!B31/VLOOKUP(B31,Tools!A:C,3,0) -> 0.1384375 | D31: =Orders!C31/VLOOKUP(B31,Tools!A:C,3,0) -> 0.08703125 | E31: =Orders!D31/VLOOKUP(B31,Tools!A:C,3,0) -> 0.10703125
A32: =Orders!A32 -> AO5834357 | B32: =VLOOKUP(A32,'Product-tool'!A:B,2,0) -> Tool 15 | C32: =Orders!B32/VLOOKUP(B32,Tools!A:C,3,0) -> 0.6415909091 | D32: =Orders!C32/VLOOKUP(B32,Tools!A:C,3,0) -> 0.5309090909 | E32: =Orders!D32/VLOOKUP(B32,Tools!A:C,3,0) -> 0.5518181818
A33: =Orders!A33 -> AO8517171 | B33: =VLOOKUP(A33,'Product-tool'!A:B,2,0) -> Tool 14 | C33: =Orders!B33/VLOOKUP(B33,Tools!A:C,3,0) -> 0.006956521739 | D33: =Orders!C33/VLOOKUP(B33,Tools!A:C,3,0) -> 0.008695652174 | E33: =Orders!D33/VLOOKUP(B33,Tools!A:C,3,0) -> 0.007391304348
A34: =Orders!A34 -> AO855133 | B34: =VLOOKUP(A34,'Product-tool'!A:B,2,0) -> Tool 7 | C34: =Orders!B34/VLOOKUP(B34,Tools!A:C,3,0) -> 0.16078125 | D34: =Orders!C34/VLOOKUP(B34,Tools!A:C,3,0) -> 0.15609375 | E34: =Orders!D34/VLOOKUP(B34,Tools!A:C,3,0) -> 0.14828125
A35: =Orders!A35 -> AP0171319 | B35: =VLOOKUP(A35,'Product-tool'!A:B,2,0) -> Tool 7 | C35: =Orders!B35/VLOOKUP(B35,Tools!A:C,3,0) -> 0.15984375 | D35: =Orders!C35/VLOOKUP(B35,Tools!A:C,3,0) -> 0.181875 | E35: =Orders!D35/VLOOKUP(B35,Tools!A:C,3,0) -> 0.1590625
A36: =Orders!A36 -> AP0202155 | B36: =VLOOKUP(A36,'Product-tool'!A:B,2,0) -> Tool 15 | C36: =Orders!B36/VLOOKUP(B36,Tools!A:C,3,0) -> 1.254545455 | D36: =Orders!C36/VLOOKUP(B36,Tools!A:C,3,0) -> 1.331590909 | E36: =Orders!D36/VLOOKUP(B36,Tools!A:C,3,0) -> 1.206363636
A37: =Orders!A37 -> AP086256 | B37: =VLOOKUP(A37,'Product-tool'!A:B,2,0) -> Tool 7 | C37: =Orders!B37/VLOOKUP(B37,Tools!A:C,3,0) -> 0.00125 | D37: =Orders!C37/VLOOKUP(B37,Tools!A:C,3,0) -> 0.001875 | E37: =Orders!D37/VLOOKUP(B37,Tools!A:C,3,0) -> 0.00140625
A38: =Orders!A38 -> AP242884 | B38: =VLOOKUP(A38,'Product-tool'!A:B,2,0) -> Tool 16 | C38: =Orders!B38/VLOOKUP(B38,Tools!A:C,3,0) -> 0.7811764706 | D38: =Orders!C38/VLOOKUP(B38,Tools!A:C,3,0) -> 1.008235294 | E38: =Orders!D38/VLOOKUP(B38,Tools!A:C,3,0) -> 0.8289705882
A39: =Orders!A39 -> AP3078837 | B39: =VLOOKUP(A39,'Product-tool'!A:B,2,0) -> Tool 7 | C39: =Orders!B39/VLOOKUP(B39,Tools!A:C,3,0) -> 0.10265625 | D39: =Orders!C39/VLOOKUP(B39,Tools!A:C,3,0) -> 0.076875 | E39: =Orders!D39/VLOOKUP(B39,Tools!A:C,3,0) -> 0.08484375
A40: =Orders!A40 -> AP352983 | B40: =VLOOKUP(A40,'Product-tool'!A:B,2,0) -> Tool 17 | C40: =Orders!B40/VLOOKUP(B40,Tools!A:C,3,0) -> 0.8982352941 | D40: =Orders!C40/VLOOKUP(B40,Tools!A:C,3,0) -> 0.7719117647 | E40: =Orders!D40/VLOOKUP(B40,Tools!A:C,3,0) -> 0.7847058824
A41: =Orders!A41 -> AP3728500 | B41: =VLOOKUP(A41,'Product-tool'!A:B,2,0) -> Tool 2 | C41: =Orders!B41/VLOOKUP(B41,Tools!A:C,3,0) -> 0.7103846154 | D41: =Orders!C41/VLOOKUP(B41,Tools!A:C,3,0) -> 0.4288461538 | E41: =Orders!D41/VLOOKUP(B41,Tools!A:C,3,0) -> 0.5419230769
A42: =Orders!A42 -> AP3951566 | B42: =VLOOKUP(A42,'Product-tool'!A:B,2,0) -> Tool 2 | C42: =Orders!B42/VLOOKUP(B42,Tools!A:C,3,0) -> 0.3846153846 | D42: =Orders!C42/VLOOKUP(B42,Tools!A:C,3,0) -> 0.2626923077 | E42: =Orders!D42/VLOOKUP(B42,Tools!A:C,3,0) -> 0.3065384615
A43: =Orders!A43 -> AP4223947 | B43: =VLOOKUP(A43,'Product-tool'!A:B,2,0) -> Tool 2 | C43: =Orders!B43/VLOOKUP(B43,Tools!A:C,3,0) -> 0.5569230769 | D43: =Orders!C43/VLOOKUP(B43,Tools!A:C,3,0) -> 0.3619230769 | E43: =Orders!D43/VLOOKUP(B43,Tools!A:C,3,0) -> 0.4357692308
A44: =Orders!A44 -> AP4745289 | B44: =VLOOKUP(A44,'Product-tool'!A:B,2,0) -> Tool 2 | C44: =Orders!B44/VLOOKUP(B44,Tools!A:C,3,0) -> 0.02538461538 | D44: =Orders!C44/VLOOKUP(B44,Tools!A:C,3,0) -> 0.04192307692 | E44: =Orders!D44/VLOOKUP(B44,Tools!A:C,3,0) -> 0.03076923077
A45: =Orders!A45 -> AP4972828 | B45: =VLOOKUP(A45,'Product-tool'!A:B,2,0) -> Tool 7 | C45: =Orders!B45/VLOOKUP(B45,Tools!A:C,3,0) -> 0.00125 | D45: =Orders!C45/VLOOKUP(B45,Tools!A:C,3,0) -> 0.0015625 | E45: =Orders!D45/VLOOKUP(B45,Tools!A:C,3,0) -> 0.00125
A46: =Orders!A46 -> AP5614262 | B46: =VLOOKUP(A46,'Product-tool'!A:B,2,0) -> Tool 7 | C46: =Orders!B46/VLOOKUP(B46,Tools!A:C,3,0) -> 0.00765625 | D46: =Orders!C46/VLOOKUP(B46,Tools!A:C,3,0) -> 0.00578125 | E46: =Orders!D46/VLOOKUP(B46,Tools!A:C,3,0) -> 0.00640625
A47: =Orders!A47 -> AP5647883 | B47: =VLOOKUP(A47,'Product-tool'!A:B,2,0) -> Tool 15 | C47: =Orders!B47/VLOOKUP(B47,Tools!A:C,3,0) -> 1.178636364 | D47: =Orders!C47/VLOOKUP(B47,Tools!A:C,3,0) -> 1.356590909 | E47: =Orders!D47/VLOOKUP(B47,Tools!A:C,3,0) -> 1.179318182
A48: =Orders!A48 -> AP5897782 | B48: =VLOOKUP(A48,'Product-tool'!A:B,2,0) -> Tool 7 | C48: =Orders!B48/VLOOKUP(B48,Tools!A:C,3,0) -> 0.02609375 | D48: =Orders!C48/VLOOKUP(B48,Tools!A:C,3,0) -> 0.01921875 | E48: =Orders!D48/VLOOKUP(B48,Tools!A:C,3,0) -> 0.02140625
A49: =Orders!A49 -> AP853615 | B49: =VLOOKUP(A49,'Product-tool'!A:B,2,0) -> Tool 13 | C49: =Orders!B49/VLOOKUP(B49,Tools!A:C,3,0) -> 0.20875 | D49: =Orders!C49/VLOOKUP(B49,Tools!A:C,3,0) -> 0.2783333333 | E49: =Orders!D49/VLOOKUP(B49,Tools!A:C,3,0) -> 0.2254166667
A50: =Orders!A50 -> AS0105077 | B50: =VLOOKUP(A50,'Product-tool'!A:B,2,0) -> Tool 12 | C50: =Orders!B50/VLOOKUP(B50,Tools!A:C,3,0) -> 0.51825 | D50: =Orders!C50/VLOOKUP(B50,Tools!A:C,3,0) -> 0.58025 | E50: =Orders!D50/VLOOKUP(B50,Tools!A:C,3,0) -> 0.5115
A51: =Orders!A51 -> AS0125536 | B51: =VLOOKUP(A51,'Product-tool'!A:B,2,0) -> Tool 5 | C51: =Orders!B51/VLOOKUP(B51,Tools!A:C,3,0) -> 49.8275 | D51: =Orders!C51/VLOOKUP(B51,Tools!A:C,3,0) -> 46.25666667 | E51: =Orders!D51/VLOOKUP(B51,Tools!A:C,3,0) -> 45.02583333
A52: =Orders!A52 -> AS0888075 | B52: =VLOOKUP(A52,'Product-tool'!A:B,2,0) -> Tool 13 | C52: =Orders!B52/VLOOKUP(B52,Tools!A:C,3,0) -> 1.683333333 | D52: =Orders!C52/VLOOKUP(B52,Tools!A:C,3,0) -> 1.06625 | E52: =Orders!D52/VLOOKUP(B52,Tools!A:C,3,0) -> 1.305416667
A53: =Orders!A53 -> AS1143091 | B53: =VLOOKUP(A53,'Product-tool'!A:B,2,0) -> Tool 5 | C53: =Orders!B53/VLOOKUP(B53,Tools!A:C,3,0) -> 6.375 | D53: =Orders!C53/VLOOKUP(B53,Tools!A:C,3,0) -> 7.443333333 | E53: =Orders!D53/VLOOKUP(B53,Tools!A:C,3,0) -> 6.423333333
A54: =Orders!A54 -> AS5378181 | B54: =VLOOKUP(A54,'Product-tool'!A:B,2,0) -> Tool 13 | C54: =Orders!B54/VLOOKUP(B54,Tools!A:C,3,0) -> 0.1854166667 | D54: =Orders!C54/VLOOKUP(B54,Tools!A:C,3,0) -> 0.2995833333 | E54: =Orders!D54/VLOOKUP(B54,Tools!A:C,3,0) -> 0.2233333333
A55: =Orders!A55 -> AS6815735 | B55: =VLOOKUP(A55,'Product-tool'!A:B,2,0) -> Tool 6 | C55: =Orders!B55/VLOOKUP(B55,Tools!A:C,3,0) -> 1.997758621 | D55: =Orders!C55/VLOOKUP(B55,Tools!A:C,3,0) -> 2.544827586 | E55: =Orders!D55/VLOOKUP(B55,Tools!A:C,3,0) -> 2.105344828
A56: =Orders!A56 -> BC1086722 | B56: =VLOOKUP(A56,'Product-tool'!A:B,2,0) -> Tool 6 | C56: =Orders!B56/VLOOKUP(B56,Tools!A:C,3,0) -> 0.1436206897 | D56: =Orders!C56/VLOOKUP(B56,Tools!A:C,3,0) -> 0.1879310345 | E56: =Orders!D56/VLOOKUP(B56,Tools!A:C,3,0) -> 0.1536206897
A57: =Orders!A57 -> BC1381899 | B57: =VLOOKUP(A57,'Product-tool'!A:B,2,0) -> Tool 6 | C57: =Orders!B57/VLOOKUP(B57,Tools!A:C,3,0) -> 0.1436206897 | D57: =Orders!C57/VLOOKUP(B57,Tools!A:C,3,0) -> 0.2274137931 | E57: =Orders!D57/VLOOKUP(B57,Tools!A:C,3,0) -> 0.1706896552
A58: =Orders!A58 -> BC1638233 | B58: =VLOOKUP(A58,'Product-tool'!A:B,2,0) -> Tool 6 | C58: =Orders!B58/VLOOKUP(B58,Tools!A:C,3,0) -> 0.06051724138 | D58: =Orders!C58/VLOOKUP(B58,Tools!A:C,3,0) -> 0.09465517241 | E58: =Orders!D58/VLOOKUP(B58,Tools!A:C,3,0) -> 0.07155172414
A59: =Orders!A59 -> BC2465775 | B59: =VLOOKUP(A59,'Product-tool'!A:B,2,0) -> Tool 6 | C59: =Orders!B59/VLOOKUP(B59,Tools!A:C,3,0) -> 0.3922413793 | D59: =Orders!C59/VLOOKUP(B59,Tools!A:C,3,0) -> 0.5162068966 | E59: =Orders!D59/VLOOKUP(B59,Tools!A:C,3,0) -> 0.4205172414
A60: =Orders!A60 -> BC2509115 | B60: =VLOOKUP(A60,'Product-tool'!A:B,2,0) -> Tool 6 | C60: =Orders!B60/VLOOKUP(B60,Tools!A:C,3,0) -> 1.147586207 | D60: =Orders!C60/VLOOKUP(B60,Tools!A:C,3,0) -> 1.386034483 | E60: =Orders!D60/VLOOKUP(B60,Tools!A:C,3,0) -> 1.176551724
A61: =Orders!A61 -> BC2965316 | B61: =VLOOKUP(A61,'Product-tool'!A:B,2,0) -> Tool 6 | C61: =Orders!B61/VLOOKUP(B61,Tools!A:C,3,0) -> 0.0574137931 | D61: =Orders!C61/VLOOKUP(B61,Tools!A:C,3,0) -> 0.09465517241 | E61: =Orders!D61/VLOOKUP(B61,Tools!A:C,3,0) -> 0.06982758621
A62: =Orders!A62 -> BC3857293 | B62: =VLOOKUP(A62,'Product-tool'!A:B,2,0) -> Tool 15 | C62: =Orders!B62/VLOOKUP(B62,Tools!A:C,3,0) -> 0.06409090909 | D62: =Orders!C62/VLOOKUP(B62,Tools!A:C,3,0) -> 0.06818181818 | E62: =Orders!D62/VLOOKUP(B62,Tools!A:C,3,0) -> 0.06159090909
A63: =Orders!A63 -> BC5752252 | B63: =VLOOKUP(A63,'Product-tool'!A:B,2,0) -> Tool 6 | C63: =Orders!B63/VLOOKUP(B63,Tools!A:C,3,0) -> 0.006896551724 | D63: =Orders!C63/VLOOKUP(B63,Tools!A:C,3,0) -> 0.008275862069 | E63: =Orders!D63/VLOOKUP(B63,Tools!A:C,3,0) -> 0.007068965517
A64: =Orders!A64 -> BC6306450 | B64: =VLOOKUP(A64,'Product-tool'!A:B,2,0) -> Tool 5 | C64: =Orders!B64/VLOOKUP(B64,Tools!A:C,3,0) -> 3.069166667 | D64: =Orders!C64/VLOOKUP(B64,Tools!A:C,3,0) -> 2.096666667 | E64: =Orders!D64/VLOOKUP(B64,Tools!A:C,3,0) -> 2.446666667
A65: =Orders!A65 -> CC0084549 | B65: =VLOOKUP(A65,'Product-tool'!A:B,2,0) -> Tool 12 | C65: =Orders!B65/VLOOKUP(B65,Tools!A:C,3,0) -> 1.83175 | D65: =Orders!C65/VLOOKUP(B65,Tools!A:C,3,0) -> 1.2275 | E65: =Orders!D65/VLOOKUP(B65,Tools!A:C,3,0) -> 1.4495
A66: =Orders!A66 -> CC0189122 | B66: =VLOOKUP(A66,'Product-tool'!A:B,2,0) -> Tool 20 | C66: =Orders!B66/VLOOKUP(B66,Tools!A:C,3,0) -> 0.4587365087 | D66: =Orders!C66/VLOOKUP(B66,Tools!A:C,3,0) -> 0.5433479091 | E66: =Orders!D66/VLOOKUP(B66,Tools!A:C,3,0) -> 0.4656175563
A67: =Orders!A67 -> CC0921636 | B67: =VLOOKUP(A67,'Product-tool'!A:B,2,0) -> Tool 20 | C67: =Orders!B67/VLOOKUP(B67,Tools!A:C,3,0) -> 2.912212269 | D67: =Orders!C67/VLOOKUP(B67,Tools!A:C,3,0) -> 2.155934164 | E67: =Orders!D67/VLOOKUP(B67,Tools!A:C,3,0) -> 2.393585161
A68: =Orders!A68 -> CC092903 | B68: =VLOOKUP(A68,'Product-tool'!A:B,2,0) -> Tool 20 | C68: =Orders!B68/VLOOKUP(B68,Tools!A:C,3,0) -> 0.001019414464 | D68: =Orders!C68/VLOOKUP(B68,Tools!A:C,3,0) -> 0.001656548503 | E68: =Orders!D68/VLOOKUP(B68,Tools!A:C,3,0) -> 0.00127426808
A69: =Orders!A69 -> CC2454697 | B69: =VLOOKUP(A69,'Product-tool'!A:B,2,0) -> Tool 20 | C69: =Orders!B69/VLOOKUP(B69,Tools!A:C,3,0) -> 0.569342978 | D69: =Orders!C69/VLOOKUP(B69,Tools!A:C,3,0) -> 0.4313397449 | E69: =Orders!D69/VLOOKUP(B69,Tools!A:C,3,0) -> 0.4722437503
A70: =Orders!A70 -> CC2566445 | B70: =VLOOKUP(A70,'Product-tool'!A:B,2,0) -> Tool 15 | C70: =Orders!B70/VLOOKUP(B70,Tools!A:C,3,0) -> 2.952727273 | D70: =Orders!C70/VLOOKUP(B70,Tools!A:C,3,0) -> 2.985909091 | E70: =Orders!D70/VLOOKUP(B70,Tools!A:C,3,0) -> 2.774545455
A71: =Orders!A71 -> CC2575 | B71: =VLOOKUP(A71,'Product-tool'!A:B,2,0) -> Tool 19 | C71: =Orders!B71/VLOOKUP(B71,Tools!A:C,3,0) -> 4.73947679 | D71: =Orders!C71/VLOOKUP(B71,Tools!A:C,3,0) -> 6.135424862 | E71: =Orders!D71/VLOOKUP(B71,Tools!A:C,3,0) -> 5.037372148
A72: =Orders!A72 -> CC2936183 | B72: =VLOOKUP(A72,'Product-tool'!A:B,2,0) -> Tool 20 | C72: =Orders!B72/VLOOKUP(B72,Tools!A:C,3,0) -> 0.3822804239 | D72: =Orders!C72/VLOOKUP(B72,Tools!A:C,3,0) -> 0.3152539229 | E72: =Orders!D72/VLOOKUP(B72,Tools!A:C,3,0) -> 0.3282514573
A73: =Orders!A73 -> CC2965217 | B73: =VLOOKUP(A73,'Product-tool'!A:B,2,0) -> Tool 20 | C73: =Orders!B73/VLOOKUP(B73,Tools!A:C,3,0) -> 2.871563117 | D73: =Orders!C73/VLOOKUP(B73,Tools!A:C,3,0) -> 3.422429208 | E73: =Orders!D73/VLOOKUP(B73,Tools!A:C,3,0) -> 2.923808109
A74: =Orders!A74 -> CC3609599 | B74: =VLOOKUP(A74,'Product-tool'!A:B,2,0) -> Tool 4 | C74: =Orders!B74/VLOOKUP(B74,Tools!A:C,3,0) -> 6.5317139 | D74: =Orders!C74/VLOOKUP(B74,Tools!A:C,3,0) -> 13.26810616 | E74: =Orders!D74/VLOOKUP(B74,Tools!A:C,3,0) -> 7.43139901
A75: =Orders!A75 -> CC3979402 | B75: =VLOOKUP(A75,'Product-tool'!A:B,2,0) -> Tool 13 | C75: =Orders!B75/VLOOKUP(B75,Tools!A:C,3,0) -> 1.251666667 | D75: =Orders!C75/VLOOKUP(B75,Tools!A:C,3,0) -> 1.366666667 | E75: =Orders!D75/VLOOKUP(B75,Tools!A:C,3,0) -> 1.22
A76: =Orders!A76 -> CC4329116 | B76: =VLOOKUP(A76,'Product-tool'!A:B,2,0) -> Tool 19 | C76: =Orders!B76/VLOOKUP(B76,Tools!A:C,3,0) -> 8.852871755 | D76: =Orders!C76/VLOOKUP(B76,Tools!A:C,3,0) -> 6.708595594 | E76: =Orders!D76/VLOOKUP(B76,Tools!A:C,3,0) -> 7.343233674
A77: =Orders!A77 -> CC4618183 | B77: =VLOOKUP(A77,'Product-tool'!A:B,2,0) -> Tool 18 | C77: =Orders!B77/VLOOKUP(B77,Tools!A:C,3,0) -> 34.95785714 | D77: =Orders!C77/VLOOKUP(B77,Tools!A:C,3,0) -> 55.40964286 | E77: =Orders!D77/VLOOKUP(B77,Tools!A:C,3,0) -> 41.57
A78: =Orders!A78 -> CC4774419 | B78: =VLOOKUP(A78,'Product-tool'!A:B,2,0) -> Tool 12 | C78: =Orders!B78/VLOOKUP(B78,Tools!A:C,3,0) -> 0.2605 | D78: =Orders!C78/VLOOKUP(B78,Tools!A:C,3,0) -> 0.2745 | E78: =Orders!D78/VLOOKUP(B78,Tools!A:C,3,0) -> 0.24975
A79: =Orders!A79 -> CC4941594 | B79: =VLOOKUP(A79,'Product-tool'!A:B,2,0) -> Tool 13 | C79: =Orders!B79/VLOOKUP(B79,Tools!A:C,3,0) -> 0.5554166667 | D79: =Orders!C79/VLOOKUP(B79,Tools!A:C,3,0) -> 0.4408333333 | E79: =Orders!D79/VLOOKUP(B79,Tools!A:C,3,0) -> 0.4695833333
A80: =Orders!A80 -> CC4945569 | B80: =VLOOKUP(A80,'Product-tool'!A:B,2,0) -> Tool 4 | C80: =Orders!B80/VLOOKUP(B80,Tools!A:C,3,0) -> 17.24021592 | D80: =Orders!C80/VLOOKUP(B80,Tools!A:C,3,0) -> 22.64417454 | E80: =Orders!D80/VLOOKUP(B80,Tools!A:C,3,0) -> 18.46558704
A81: =Orders!A81 -> CC5387633 | B81: =VLOOKUP(A81,'Product-tool'!A:B,2,0) -> Tool 4 | C81: =Orders!B81/VLOOKUP(B81,Tools!A:C,3,0) -> 5.326585695 | D81: =Orders!C81/VLOOKUP(B81,Tools!A:C,3,0) -> 4.152496626 | E81: =Orders!D81/VLOOKUP(B81,Tools!A:C,3,0) -> 4.468735942
A82: =Orders!A82 -> CC5505924 | B82: =VLOOKUP(A82,'Product-tool'!A:B,2,0) -> Tool 19 | C82: =Orders!B82/VLOOKUP(B82,Tools!A:C,3,0) -> 0.005704169945 | D82: =Orders!C82/VLOOKUP(B82,Tools!A:C,3,0) -> 0.008064516129 | E82: =Orders!D82/VLOOKUP(B82,Tools!A:C,3,0) -> 0.006392604249
A83: =Orders!A83 -> CC5603244 | B83: =VLOOKUP(A83,'Product-tool'!A:B,2,0) -> Tool 12 | C83: =Orders!B83/VLOOKUP(B83,Tools!A:C,3,0) -> 0.45 | D83: =Orders!C83/VLOOKUP(B83,Tools!A:C,3,0) -> 0.63925 | E83: =Orders!D83/VLOOKUP(B83,Tools!A:C,3,0) -> 0.503
A84: =Orders!A84 -> CC5605066 | B84: =VLOOKUP(A84,'Product-tool'!A:B,2,0) -> Tool 8 | C84: =Orders!B84/VLOOKUP(B84,Tools!A:C,3,0) -> 87.25816327 | D84: =Orders!C84/VLOOKUP(B84,Tools!A:C,3,0) -> 129.6443878 | E84: =Orders!D84/VLOOKUP(B84,Tools!A:C,3,0) -> 99.99617347
A85: =Orders!A85 -> CC5646794 | B85: =VLOOKUP(A85,'Product-tool'!A:B,2,0) -> Tool 20 | C85: =Orders!B85/VLOOKUP(B85,Tools!A:C,3,0) -> 0.2122930621 | D85: =Orders!C85/VLOOKUP(B85,Tools!A:C,3,0) -> 0.1608126316 | E85: =Orders!D85/VLOOKUP(B85,Tools!A:C,3,0) -> 0.1761038486
A86: =Orders!A86 -> CC5671451 | B86: =VLOOKUP(A86,'Product-tool'!A:B,2,0) -> Tool 19 | C86: =Orders!B86/VLOOKUP(B86,Tools!A:C,3,0) -> 0.2089889851 | D86: =Orders!C86/VLOOKUP(B86,Tools!A:C,3,0) -> 0.2228560189 | E86: =Orders!D86/VLOOKUP(B86,Tools!A:C,3,0) -> 0.2014162077
A87: =Orders!A87 -> CC5798817 | B87: =VLOOKUP(A87,'Product-tool'!A:B,2,0) -> Tool 20 | C87: =Orders!B87/VLOOKUP(B87,Tools!A:C,3,0) -> 0.8452220172 | D87: =Orders!C87/VLOOKUP(B87,Tools!A:C,3,0) -> 0.566029881 | E87: =Orders!D87/VLOOKUP(B87,Tools!A:C,3,0) -> 0.6687358882
A88: =Orders!A88 -> CC5805891 | B88: =VLOOKUP(A88,'Product-tool'!A:B,2,0) -> Tool 4 | C88: =Orders!B88/VLOOKUP(B88,Tools!A:C,3,0) -> 1.049482681 | D88: =Orders!C88/VLOOKUP(B88,Tools!A:C,3,0) -> 0.6576698156 | E88: =Orders!D88/VLOOKUP(B88,Tools!A:C,3,0) -> 0.8106162843
A89: =Orders!A89 -> CC5803851 | B89: =VLOOKUP(A89,'Product-tool'!A:B,2,0) -> Tool 20 | C89: =Orders!B89/VLOOKUP(B89,Tools!A:C,3,0) -> 1.437884101 | D89: =Orders!C89/VLOOKUP(B89,Tools!A:C,3,0) -> 2.435763434 | E89: =Orders!D89/VLOOKUP(B89,Tools!A:C,3,0) -> 1.777986251
A90: =Orders!A90 -> CC5835642 | B90: =VLOOKUP(A90,'Product-tool'!A:B,2,0) -> Tool 12 | C90: =Orders!B90/VLOOKUP(B90,Tools!A:C,3,0) -> 0.002 | D90: =Orders!C90/VLOOKUP(B90,Tools!A:C,3,0) -> 0.00125 | E90: =Orders!D90/VLOOKUP(B90,Tools!A:C,3,0) -> 0.00175
A91: =Orders!A91 -> CC5844379 | B91: =VLOOKUP(A91,'Product-tool'!A:B,2,0) -> Tool 13 | C91: =Orders!B91/VLOOKUP(B91,Tools!A:C,3,0) -> 3.550416667 | D91: =Orders!C91/VLOOKUP(B91,Tools!A:C,3,0) -> 2.578333333 | E91: =Orders!D91/VLOOKUP(B91,Tools!A:C,3,0) -> 2.89625
A92: =Orders!A92 -> CC5859307 | B92: =VLOOKUP(A92,'Product-tool'!A:B,2,0) -> Tool 15 | C92: =Orders!B92/VLOOKUP(B92,Tools!A:C,3,0) -> 0.1059090909 | D92: =Orders!C92/VLOOKUP(B92,Tools!A:C,3,0) -> 0.1015909091 | E92: =Orders!D92/VLOOKUP(B92,Tools!A:C,3,0) -> 0.09727272727
A93: =Orders!A93 -> CC5877145 | B93: =VLOOKUP(A93,'Product-tool'!A:B,2,0) -> Tool 12 | C93: =Orders!B93/VLOOKUP(B93,Tools!A:C,3,0) -> 0.32225 | D93: =Orders!C93/VLOOKUP(B93,Tools!A:C,3,0) -> 0.4555 | E93: =Orders!D93/VLOOKUP(B93,Tools!A:C,3,0) -> 0.35925
A94: =Orders!A94 -> CC5872620 | B94: =VLOOKUP(A94,'Product-tool'!A:B,2,0) -> Tool 19 | C94: =Orders!B94/VLOOKUP(B94,Tools!A:C,3,0) -> 7.199252557 | D94: =Orders!C94/VLOOKUP(B94,Tools!A:C,3,0) -> 10.93332022 | E94: =Orders!D94/VLOOKUP(B94,Tools!A:C,3,0) -> 8.353265146
A95: =Orders!A95 -> CC5949597 | B95: =VLOOKUP(A95,'Product-tool'!A:B,2,0) -> Tool 15 | C95: =Orders!B95/VLOOKUP(B95,Tools!A:C,3,0) -> 2.070909091 | D95: =Orders!C95/VLOOKUP(B95,Tools!A:C,3,0) -> 2.306363636 | E95: =Orders!D95/VLOOKUP(B95,Tools!A:C,3,0) -> 2.038181818
A96: =Orders!A96 -> CC5951749 | B96: =VLOOKUP(A96,'Product-tool'!A:B,2,0) -> Tool 19 | C96: =Orders!B96/VLOOKUP(B96,Tools!A:C,3,0) -> 0.009736428009 | D96: =Orders!C96/VLOOKUP(B96,Tools!A:C,3,0) -> 0.01071990559 | E96: =Orders!D96/VLOOKUP(B96,Tools!A:C,3,0) -> 0.009539732494
A97: =Orders!A97 -> CC6069687 | B97: =VLOOKUP(A97,'Product-tool'!A:B,2,0) -> Tool 4 | C97: =Orders!B97/VLOOKUP(B97,Tools!A:C,3,0) -> 0.05982905983 | D97: =Orders!C97/VLOOKUP(B97,Tools!A:C,3,0) -> 0.09896536212 | E97: =Orders!D97/VLOOKUP(B97,Tools!A:C,3,0) -> 0.07332433648
A98: =Orders!A98 -> CC6146771 | B98: =VLOOKUP(A98,'Product-tool'!A:B,2,0) -> Tool 19 | C98: =Orders!B98/VLOOKUP(B98,Tools!A:C,3,0) -> 0.21754524 | D98: =Orders!C98/VLOOKUP(B98,Tools!A:C,3,0) -> 0.2292486231 | E98: =Orders!D98/VLOOKUP(B98,Tools!A:C,3,0) -> 0.2083988985
A99: =Orders!A99 -> CC642531 | B99: =VLOOKUP(A99,'Product-tool'!A:B,2,0) -> Tool 19 | C99: =Orders!B99/VLOOKUP(B99,Tools!A:C,3,0) -> 0.1048387097 | D99: =Orders!C99/VLOOKUP(B99,Tools!A:C,3,0) -> 0.07149881983 | E99: =Orders!D99/VLOOKUP(B99,Tools!A:C,3,0) -> 0.08349724626
A100: =Orders!A100 -> CC6514546 | B100: =VLOOKUP(A100,'Product-tool'!A:B,2,0) -> Tool 15 | C100: =Orders!B100/VLOOKUP(B100,Tools!A:C,3,0) -> 0.01886363636 | D100: =Orders!C100/VLOOKUP(B100,Tools!A:C,3,0) -> 0.02818181818 | E100: =Orders!D100/VLOOKUP(B100,Tools!A:C,3,0) -> 0.02159090909
A101: =Orders!A101 -> CL1528731 | B101: =VLOOKUP(A101,'Product-tool'!A:B,2,0) -> Tool 15 | C101: =Orders!B101/VLOOKUP(B101,Tools!A:C,3,0) -> 0.9388636364 | D101: =Orders!C101/VLOOKUP(B101,Tools!A:C,3,0) -> 1.116136364 | E101: =Orders!D101/VLOOKUP(B101,Tools!A:C,3,0) -> 0.9547727273
A102: =Orders!A102 -> CL4179003 | B102: =VLOOKUP(A102,'Product-tool'!A:B,2,0) -> Tool 8 | C102: =Orders!B102/VLOOKUP(B102,Tools!A:C,3,0) -> 0.425 | D102: =Orders!C102/VLOOKUP(B102,Tools!A:C,3,0) -> 0.5464285714 | E102: =Orders!D102/VLOOKUP(B102,Tools!A:C,3,0) -> 0.450255102
A103: =Orders!A103 -> CM2146129 | B103: =VLOOKUP(A103,'Product-tool'!A:B,2,0) -> Tool 8 | C103: =Orders!B103/VLOOKUP(B103,Tools!A:C,3,0) -> 0.3260204082 | D103: =Orders!C103/VLOOKUP(B103,Tools!A:C,3,0) -> 0.5214285714 | E103: =Orders!D103/VLOOKUP(B103,Tools!A:C,3,0) -> 0.3897959184
A104: =Orders!A104 -> CM2144500 | B104: =VLOOKUP(A104,'Product-tool'!A:B,2,0) -> Tool 8 | C104: =Orders!B104/VLOOKUP(B104,Tools!A:C,3,0) -> 1.360459184 | D104: =Orders!C104/VLOOKUP(B104,Tools!A:C,3,0) -> 2.169897959 | E104: =Orders!D104/VLOOKUP(B104,Tools!A:C,3,0) -> 1.62372449
A105: =Orders!A105 -> CM2364748 | B105: =VLOOKUP(A105,'Product-tool'!A:B,2,0) -> Tool 4 | C105: =Orders!B105/VLOOKUP(B105,Tools!A:C,3,0) -> 0.493477283 | D105: =Orders!C105/VLOOKUP(B105,Tools!A:C,3,0) -> 0.4358974359 | E105: =Orders!D105/VLOOKUP(B105,Tools!A:C,3,0) -> 0.4363472785
A106: =Orders!A106 -> CM2573429 | B106: =VLOOKUP(A106,'Product-tool'!A:B,2,0) -> Tool 8 | C106: =Orders!B106/VLOOKUP(B106,Tools!A:C,3,0) -> 6.124744898 | D106: =Orders!C106/VLOOKUP(B106,Tools!A:C,3,0) -> 4.47627551 | E106: =Orders!D106/VLOOKUP(B106,Tools!A:C,3,0) -> 5.008673469
A107: =Orders!A107 -> CM267912 | B107: =VLOOKUP(A107,'Product-tool'!A:B,2,0) -> Tool 8 | C107: =Orders!B107/VLOOKUP(B107,Tools!A:C,3,0) -> 0.02270408163 | D107: =Orders!C107/VLOOKUP(B107,Tools!A:C,3,0) -> 0.03010204082 | E107: =Orders!D107/VLOOKUP(B107,Tools!A:C,3,0) -> 0.02448979592
A108: =Orders!A108 -> CM2981742 | B108: =VLOOKUP(A108,'Product-tool'!A:B,2,0) -> Tool 10 | C108: =Orders!B108/VLOOKUP(B108,Tools!A:C,3,0) -> 0.007741935484 | D108: =Orders!C108/VLOOKUP(B108,Tools!A:C,3,0) -> 0.01032258065 | E108: =Orders!D108/VLOOKUP(B108,Tools!A:C,3,0) -> 0.008387096774
A109: =Orders!A109 -> CM350886 | B109: =VLOOKUP(A109,'Product-tool'!A:B,2,0) -> Tool 8 | C109: =Orders!B109/VLOOKUP(B109,Tools!A:C,3,0) -> 0.002551020408 | D109: =Orders!C109/VLOOKUP(B109,Tools!A:C,3,0) -> 0.001275510204 | E109: =Orders!D109/VLOOKUP(B109,Tools!A:C,3,0) -> 0.001785714286
A110: =Orders!A110 -> CM3509051 | B110: =VLOOKUP(A110,'Product-tool'!A:B,2,0) -> Tool 8 | C110: =Orders!B110/VLOOKUP(B110,Tools!A:C,3,0) -> 1.882142857 | D110: =Orders!C110/VLOOKUP(B110,Tools!A:C,3,0) -> 2.335969388 | E110: =Orders!D110/VLOOKUP(B110,Tools!A:C,3,0) -> 1.956632653
A111: =Orders!A111 -> CM5648071 | B111: =VLOOKUP(A111,'Product-tool'!A:B,2,0) -> Tool 19 | C111: =Orders!B111/VLOOKUP(B111,Tools!A:C,3,0) -> 0.07985837923 | D111: =Orders!C111/VLOOKUP(B111,Tools!A:C,3,0) -> 0.1267702596 | E111: =Orders!D111/VLOOKUP(B111,Tools!A:C,3,0) -> 0.09500393391
A112: =Orders!A112 -> CM5946003 | B112: =VLOOKUP(A112,'Product-tool'!A:B,2,0) -> Tool 19 | C112: =Orders!B112/VLOOKUP(B112,Tools!A:C,3,0) -> 0.990656963 | D112: =Orders!C112/VLOOKUP(B112,Tools!A:C,3,0) -> 0.8337922895 | E112: =Orders!D112/VLOOKUP(B112,Tools!A:C,3,0) -> 0.8578874902
A113: =Orders!A113 -> CM5947011 | B113: =VLOOKUP(A113,'Product-tool'!A:B,2,0) -> Tool 4 | C113: =Orders!B113/VLOOKUP(B113,Tools!A:C,3,0) -> 5.429149798 | D113: =Orders!C113/VLOOKUP(B113,Tools!A:C,3,0) -> 3.341880342 | E113: =Orders!D113/VLOOKUP(B113,Tools!A:C,3,0) -> 4.167791273
A114: =Orders!A114 -> CP2759269 | B114: =VLOOKUP(A114,'Product-tool'!A:B,2,0) -> Tool 9 | C114: =Orders!B114/VLOOKUP(B114,Tools!A:C,3,0) -> 14.20833333 | D114: =Orders!C114/VLOOKUP(B114,Tools!A:C,3,0) -> 15.84166667 | E114: =Orders!D114/VLOOKUP(B114,Tools!A:C,3,0) -> 13.99375
A115: =Orders!A115 -> CP3651771 | B115: =VLOOKUP(A115,'Product-tool'!A:B,2,0) -> Tool 2 | C115: =Orders!B115/VLOOKUP(B115,Tools!A:C,3,0) -> 3.751153846 | D115: =Orders!C115/VLOOKUP(B115,Tools!A:C,3,0) -> 4.955 | E115: =Orders!D115/VLOOKUP(B115,Tools!A:C,3,0) -> 4.03
A116: =Orders!A116 -> CP3782517 | B116: =VLOOKUP(A116,'Product-tool'!A:B,2,0) -> Tool 16 | C116: =Orders!B116/VLOOKUP(B116,Tools!A:C,3,0) -> 0.7898529412 | D116: =Orders!C116/VLOOKUP(B116,Tools!A:C,3,0) -> 0.6927941176 | E116: =Orders!D116/VLOOKUP(B116,Tools!A:C,3,0) -> 0.6961764706
A117: =Orders!A117 -> CP5891290 | B117: =VLOOKUP(A117,'Product-tool'!A:B,2,0) -> Tool 12 | C117: =Orders!B117/VLOOKUP(B117,Tools!A:C,3,0) -> 0.03325 | D117: =Orders!C117/VLOOKUP(B117,Tools!A:C,3,0) -> 0.02725 | E117: =Orders!D117/VLOOKUP(B117,Tools!A:C,3,0) -> 0.0285
A118: =Orders!A118 -> CP5915175 | B118: =VLOOKUP(A118,'Product-tool'!A:B,2,0) -> Tool 17 | C118: =Orders!B118/VLOOKUP(B118,Tools!A:C,3,0) -> 0.06426470588 | D118: =Orders!C118/VLOOKUP(B118,Tools!A:C,3,0) -> 0.06970588235 | E118: =Orders!D118/VLOOKUP(B118,Tools!A:C,3,0) -> 0.0625
A119: =Orders!A119 -> CT0314214 | B119: =VLOOKUP(A119,'Product-tool'!A:B,2,0) -> Tool 20 | C119: =Orders!B119/VLOOKUP(B119,Tools!A:C,3,0) -> 5.574922848 | D119: =Orders!C119/VLOOKUP(B119,Tools!A:C,3,0) -> 9.373388567 | E119: =Orders!D119/VLOOKUP(B119,Tools!A:C,3,0) -> 6.862825596
A120: =Orders!A120 -> CT0686710 | B120: =VLOOKUP(A120,'Product-tool'!A:B,2,0) -> Tool 4 | C120: =Orders!B120/VLOOKUP(B120,Tools!A:C,3,0) -> 0.8618983356 | D120: =Orders!C120/VLOOKUP(B120,Tools!A:C,3,0) -> 1.308591993 | E120: =Orders!D120/VLOOKUP(B120,Tools!A:C,3,0) -> 1
A121: =Orders!A121 -> CT0911438 | B121: =VLOOKUP(A121,'Product-tool'!A:B,2,0) -> Tool 13 | C121: =Orders!B121/VLOOKUP(B121,Tools!A:C,3,0) -> 0.59 | D121: =Orders!C121/VLOOKUP(B121,Tools!A:C,3,0) -> 0.62625 | E121: =Orders!D121/VLOOKUP(B121,Tools!A:C,3,0) -> 0.5675
A122: =Orders!A122 -> CT1153413 | B122: =VLOOKUP(A122,'Product-tool'!A:B,2,0) -> Tool 20 | C122: =Orders!B122/VLOOKUP(B122,Tools!A:C,3,0) -> 0.3894163251 | D122: =Orders!C122/VLOOKUP(B122,Tools!A:C,3,0) -> 0.5964848881 | E122: =Orders!D122/VLOOKUP(B122,Tools!A:C,3,0) -> 0.4540217168
A123: =Orders!A123 -> CT1195860 | B123: =VLOOKUP(A123,'Product-tool'!A:B,2,0) -> Tool 19 | C123: =Orders!B123/VLOOKUP(B123,Tools!A:C,3,0) -> 0.131097561 | D123: =Orders!C123/VLOOKUP(B123,Tools!A:C,3,0) -> 0.2119394178 | E123: =Orders!D123/VLOOKUP(B123,Tools!A:C,3,0) -> 0.1576514555
A124: =Orders!A124 -> CT1344126 | B124: =VLOOKUP(A124,'Product-tool'!A:B,2,0) -> Tool 16 | C124: =Orders!B124/VLOOKUP(B124,Tools!A:C,3,0) -> 1.225441176 | D124: =Orders!C124/VLOOKUP(B124,Tools!A:C,3,0) -> 0.96 | E124: =Orders!D124/VLOOKUP(B124,Tools!A:C,3,0) -> 1.030147059
A125: =Orders!A125 -> CT1427436 | B125: =VLOOKUP(A125,'Product-tool'!A:B,2,0) -> Tool 16 | C125: =Orders!B125/VLOOKUP(B125,Tools!A:C,3,0) -> 0.03205882353 | D125: =Orders!C125/VLOOKUP(B125,Tools!A:C,3,0) -> 0.0375 | E125: =Orders!D125/VLOOKUP(B125,Tools!A:C,3,0) -> 0.03235294118
A126: =Orders!A126 -> CT1422602 | B126: =VLOOKUP(A126,'Product-tool'!A:B,2,0) -> Tool 13 | C126: =Orders!B126/VLOOKUP(B126,Tools!A:C,3,0) -> 1.952916667 | D126: =Orders!C126/VLOOKUP(B126,Tools!A:C,3,0) -> 2.4 | E126: =Orders!D126/VLOOKUP(B126,Tools!A:C,3,0) -> 2.02
A127: =Orders!A127 -> CT1693771 | B127: =VLOOKUP(A127,'Product-tool'!A:B,2,0) -> Tool 19 | C127: =Orders!B127/VLOOKUP(B127,Tools!A:C,3,0) -> 1.057140047 | D127: =Orders!C127/VLOOKUP(B127,Tools!A:C,3,0) -> 1.397324941 | E127: =Orders!D127/VLOOKUP(B127,Tools!A:C,3,0) -> 1.136113297
A128: =Orders!A128 -> CT2356543 | B128: =VLOOKUP(A128,'Product-tool'!A:B,2,0) -> Tool 18 | C128: =Orders!B128/VLOOKUP(B128,Tools!A:C,3,0) -> 1.130714286 | D128: =Orders!C128/VLOOKUP(B128,Tools!A:C,3,0) -> 1.315 | E128: =Orders!D128/VLOOKUP(B128,Tools!A:C,3,0) -> 1.137142857
A129: =Orders!A129 -> CT2727204 | B129: =VLOOKUP(A129,'Product-tool'!A:B,2,0) -> Tool 11 | C129: =Orders!B129/VLOOKUP(B129,Tools!A:C,3,0) -> 2.591535433 | D129: =Orders!C129/VLOOKUP(B129,Tools!A:C,3,0) -> 1.888287402 | E129: =Orders!D129/VLOOKUP(B129,Tools!A:C,3,0) -> 2.117125984
A130: =Orders!A130 -> CT2748008 | B130: =VLOOKUP(A130,'Product-tool'!A:B,2,0) -> Tool 20 | C130: =Orders!B130/VLOOKUP(B130,Tools!A:C,3,0) -> 0.06791848864 | D130: =Orders!C130/VLOOKUP(B130,Tools!A:C,3,0) -> 0.05020616234 | E130: =Orders!D130/VLOOKUP(B130,Tools!A:C,3,0) -> 0.05581294189
A131: =Orders!A131 -> CT2882108 | B131: =VLOOKUP(A131,'Product-tool'!A:B,2,0) -> Tool 19 | C131: =Orders!B131/VLOOKUP(B131,Tools!A:C,3,0) -> 11.17476397 | D131: =Orders!C131/VLOOKUP(B131,Tools!A:C,3,0) -> 9.55438631 | E131: =Orders!D131/VLOOKUP(B131,Tools!A:C,3,0) -> 9.741443745
A132: =Orders!A132 -> CT2899279 | B132: =VLOOKUP(A132,'Product-tool'!A:B,2,0) -> Tool 11 | C132: =Orders!B132/VLOOKUP(B132,Tools!A:C,3,0) -> 0.8198818898 | D132: =Orders!C132/VLOOKUP(B132,Tools!A:C,3,0) -> 0.9251968504 | E132: =Orders!D132/VLOOKUP(B132,Tools!A:C,3,0) -> 0.8125
A133: =Orders!A133 -> CT2921184 | B133: =VLOOKUP(A133,'Product-tool'!A:B,2,0) -> Tool 15 | C133: =Orders!B133/VLOOKUP(B133,Tools!A:C,3,0) -> 3.049090909 | D133: =Orders!C133/VLOOKUP(B133,Tools!A:C,3,0) -> 3.769772727 | E133: =Orders!D133/VLOOKUP(B133,Tools!A:C,3,0) -> 3.163636364
A134: =Orders!A134 -> CT2976643 | B134: =VLOOKUP(A134,'Product-tool'!A:B,2,0) -> Tool 18 | C134: =Orders!B134/VLOOKUP(B134,Tools!A:C,3,0) -> 0.3903571429 | D134: =Orders!C134/VLOOKUP(B134,Tools!A:C,3,0) -> 0.6164285714 | E134: =Orders!D134/VLOOKUP(B134,Tools!A:C,3,0) -> 0.4632142857
A135: =Orders!A135 -> CT3251740 | B135: =VLOOKUP(A135,'Product-tool'!A:B,2,0) -> Tool 18 | C135: =Orders!B135/VLOOKUP(B135,Tools!A:C,3,0) -> 2.008928571 | D135: =Orders!C135/VLOOKUP(B135,Tools!A:C,3,0) -> 2.213571429 | E135: =Orders!D135/VLOOKUP(B135,Tools!A:C,3,0) -> 1.966785714
A136: =Orders!A136 -> CT3327591 | B136: =VLOOKUP(A136,'Product-tool'!A:B,2,0) -> Tool 20 | C136: =Orders!B136/VLOOKUP(B136,Tools!A:C,3,0) -> 2.181037245 | D136: =Orders!C136/VLOOKUP(B136,Tools!A:C,3,0) -> 3.610001469 | E136: =Orders!D136/VLOOKUP(B136,Tools!A:C,3,0) -> 2.660034616
A137: =Orders!A137 -> CT3389630 | B137: =VLOOKUP(A137,'Product-tool'!A:B,2,0) -> Tool 3 | C137: =Orders!B137/VLOOKUP(B137,Tools!A:C,3,0) -> 0.3379166667 | D137: =Orders!C137/VLOOKUP(B137,Tools!A:C,3,0) -> 0.5545833333 | E137: =Orders!D137/VLOOKUP(B137,Tools!A:C,3,0) -> 0.4104166667
A138: =Orders!A138 -> CT3513686 | B138: =VLOOKUP(A138,'Product-tool'!A:B,2,0) -> Tool 15 | C138: =Orders!B138/VLOOKUP(B138,Tools!A:C,3,0) -> 0.0175 | D138: =Orders!C138/VLOOKUP(B138,Tools!A:C,3,0) -> 0.01977272727 | E138: =Orders!D138/VLOOKUP(B138,Tools!A:C,3,0) -> 0.01727272727
A139: =Orders!A139 -> CT3676279 | B139: =VLOOKUP(A139,'Product-tool'!A:B,2,0) -> Tool 18 | C139: =Orders!B139/VLOOKUP(B139,Tools!A:C,3,0) -> 14.25892857 | D139: =Orders!C139/VLOOKUP(B139,Tools!A:C,3,0) -> 14.70107143 | E139: =Orders!D139/VLOOKUP(B139,Tools!A:C,3,0) -> 13.52142857
A140: =Orders!A140 -> CT3847465 | B140: =VLOOKUP(A140,'Product-tool'!A:B,2,0) -> Tool 8 | C140: =Orders!B140/VLOOKUP(B140,Tools!A:C,3,0) -> 26.37219388 | D140: =Orders!C140/VLOOKUP(B140,Tools!A:C,3,0) -> 20.32168367 | E140: =Orders!D140/VLOOKUP(B140,Tools!A:C,3,0) -> 22.02168367
A141: =Orders!A141 -> CT3866790 | B141: =VLOOKUP(A141,'Product-tool'!A:B,2,0) -> Tool 20 | C141: =Orders!B141/VLOOKUP(B141,Tools!A:C,3,0) -> 8.704270398 | D141: =Orders!C141/VLOOKUP(B141,Tools!A:C,3,0) -> 9.163516614 | E141: =Orders!D141/VLOOKUP(B141,Tools!A:C,3,0) -> 8.336261777
A142: =Orders!A142 -> CT4394015 | B142: =VLOOKUP(A142,'Product-tool'!A:B,2,0) -> Tool 4 | C142: =Orders!B142/VLOOKUP(B142,Tools!A:C,3,0) -> 10.94062078 | D142: =Orders!C142/VLOOKUP(B142,Tools!A:C,3,0) -> 16.39451192 | E142: =Orders!D142/VLOOKUP(B142,Tools!A:C,3,0) -> 10.06072874
A143: =Orders!A143 -> CT4485707 | B143: =VLOOKUP(A143,'Product-tool'!A:B,2,0) -> Tool 19 | C143: =Orders!B143/VLOOKUP(B143,Tools!A:C,3,0) -> 0.005704169945 | D143: =Orders!C143/VLOOKUP(B143,Tools!A:C,3,0) -> 0.006195908733 | E143: =Orders!D143/VLOOKUP(B143,Tools!A:C,3,0) -> 0.00550747443
A144: =Orders!A144 -> CT4625235 | B144: =VLOOKUP(A144,'Product-tool'!A:B,2,0) -> Tool 11 | C144: =Orders!B144/VLOOKUP(B144,Tools!A:C,3,0) -> 0.6067913386 | D144: =Orders!C144/VLOOKUP(B144,Tools!A:C,3,0) -> 0.9443897638 | E144: =Orders!D144/VLOOKUP(B144,Tools!A:C,3,0) -> 0.7140748031
A145: =Orders!A145 -> CT4696984 | B145: =VLOOKUP(A145,'Product-tool'!A:B,2,0) -> Tool 12 | C145: =Orders!B145/VLOOKUP(B145,Tools!A:C,3,0) -> 1.6025 | D145: =Orders!C145/VLOOKUP(B145,Tools!A:C,3,0) -> 1.957 | E145: =Orders!D145/VLOOKUP(B145,Tools!A:C,3,0) -> 1.65225
A146: =Orders!A146 -> CT4766693 | B146: =VLOOKUP(A146,'Product-tool'!A:B,2,0) -> Tool 19 | C146: =Orders!B146/VLOOKUP(B146,Tools!A:C,3,0) -> 1.176730921 | D146: =Orders!C146/VLOOKUP(B146,Tools!A:C,3,0) -> 1.784520063 | E146: =Orders!D146/VLOOKUP(B146,Tools!A:C,3,0) -> 1.364280094
A147: =Orders!A147 -> CT4972454 | B147: =VLOOKUP(A147,'Product-tool'!A:B,2,0) -> Tool 20 | C147: =Orders!B147/VLOOKUP(B147,Tools!A:C,3,0) -> 6.28583701 | D147: =Orders!C147/VLOOKUP(B147,Tools!A:C,3,0) -> 5.647301275 | E147: =Orders!D147/VLOOKUP(B147,Tools!A:C,3,0) -> 5.598241954
A148: =Orders!A148 -> CT4983245 | B148: =VLOOKUP(A148,'Product-tool'!A:B,2,0) -> Tool 19 | C148: =Orders!B148/VLOOKUP(B148,Tools!A:C,3,0) -> 1.258851298 | D148: =Orders!C148/VLOOKUP(B148,Tools!A:C,3,0) -> 1.203186467 | E148: =Orders!D148/VLOOKUP(B148,Tools!A:C,3,0) -> 1.152537372
A149: =Orders!A149 -> CT4998062 | B149: =VLOOKUP(A149,'Product-tool'!A:B,2,0) -> Tool 19 | C149: =Orders!B149/VLOOKUP(B149,Tools!A:C,3,0) -> 0.04091266719 | D149: =Orders!C149/VLOOKUP(B149,Tools!A:C,3,0) -> 0.03589693155 | E149: =Orders!D149/VLOOKUP(B149,Tools!A:C,3,0) -> 0.03609362707
A150: =Orders!A150 -> CT5306052 | B150: =VLOOKUP(A150,'Product-tool'!A:B,2,0) -> Tool 20 | C150: =Orders!B150/VLOOKUP(B150,Tools!A:C,3,0) -> 0.03058243391 | D150: =Orders!C150/VLOOKUP(B150,Tools!A:C,3,0) -> 0.02956301945 | E150: =Orders!D150/VLOOKUP(B150,Tools!A:C,3,0) -> 0.02816132456
A151: =Orders!A151 -> CT5312249 | B151: =VLOOKUP(A151,'Product-tool'!A:B,2,0) -> Tool 19 | C151: =Orders!B151/VLOOKUP(B151,Tools!A:C,3,0) -> 0.0007867820614 | D151: =Orders!C151/VLOOKUP(B151,Tools!A:C,3,0) -> 0.001081825334 | E151: =Orders!D151/VLOOKUP(B151,Tools!A:C,3,0) -> 0.000885129819
A152: =Orders!A152 -> CT5387974 | B152: =VLOOKUP(A152,'Product-tool'!A:B,2,0) -> Tool 10 | C152: =Orders!B152/VLOOKUP(B152,Tools!A:C,3,0) -> 0.005161290323 | D152: =Orders!C152/VLOOKUP(B152,Tools!A:C,3,0) -> 0.003225806452 | E152: =Orders!D152/VLOOKUP(B152,Tools!A:C,3,0) -> 0.003870967742
A153: =Orders!A153 -> CT5424793 | B153: =VLOOKUP(A153,'Product-tool'!A:B,2,0) -> Tool 12 | C153: =Orders!B153/VLOOKUP(B153,Tools!A:C,3,0) -> 0.641 | D153: =Orders!C153/VLOOKUP(B153,Tools!A:C,3,0) -> 0.55625 | E153: =Orders!D153/VLOOKUP(B153,Tools!A:C,3,0) -> 0.56225
A154: =Orders!A154 -> CT54540 | B154: =VLOOKUP(A154,'Product-tool'!A:B,2,0) -> Tool 15 | C154: =Orders!B154/VLOOKUP(B154,Tools!A:C,3,0) -> 4.139545455 | D154: =Orders!C154/VLOOKUP(B154,Tools!A:C,3,0) -> 4.375909091 | E154: =Orders!D154/VLOOKUP(B154,Tools!A:C,3,0) -> 3.972272727
A155: =Orders!A155 -> CT5587547 | B155: =VLOOKUP(A155,'Product-tool'!A:B,2,0) -> Tool 19 | C155: =Orders!B155/VLOOKUP(B155,Tools!A:C,3,0) -> 0.009343036979 | D155: =Orders!C155/VLOOKUP(B155,Tools!A:C,3,0) -> 0.007769472856 | E155: =Orders!D155/VLOOKUP(B155,Tools!A:C,3,0) -> 0.008064516129
A156: =Orders!A156 -> CT5594793 | B156: =VLOOKUP(A156,'Product-tool'!A:B,2,0) -> Tool 18 | C156: =Orders!B156/VLOOKUP(B156,Tools!A:C,3,0) -> 0.375 | D156: =Orders!C156/VLOOKUP(B156,Tools!A:C,3,0) -> 0.5853571429 | E156: =Orders!D156/VLOOKUP(B156,Tools!A:C,3,0) -> 0.4421428571
A157: =Orders!A157 -> CT5668919 | B157: =VLOOKUP(A157,'Product-tool'!A:B,2,0) -> Tool 20 | C157: =Orders!B157/VLOOKUP(B157,Tools!A:C,3,0) -> 0.06320369675 | D157: =Orders!C157/VLOOKUP(B157,Tools!A:C,3,0) -> 0.06001802655 | E157: =Orders!D157/VLOOKUP(B157,Tools!A:C,3,0) -> 0.05772434401
A158: =Orders!A158 -> CT5745169 | B158: =VLOOKUP(A158,'Product-tool'!A:B,2,0) -> Tool 12 | C158: =Orders!B158/VLOOKUP(B158,Tools!A:C,3,0) -> 0.05075 | D158: =Orders!C158/VLOOKUP(B158,Tools!A:C,3,0) -> 0.06625 | E158: =Orders!D158/VLOOKUP(B158,Tools!A:C,3,0) -> 0.05425
A159: =Orders!A159 -> CT5745914 | B159: =VLOOKUP(A159,'Product-tool'!A:B,2,0) -> Tool 12 | C159: =Orders!B159/VLOOKUP(B159,Tools!A:C,3,0) -> 0.39575 | D159: =Orders!C159/VLOOKUP(B159,Tools!A:C,3,0) -> 0.419 | E159: =Orders!D159/VLOOKUP(B159,Tools!A:C,3,0) -> 0.38025
A160: =Orders!A160 -> CT5783436 | B160: =VLOOKUP(A160,'Product-tool'!A:B,2,0) -> Tool 20 | C160: =Orders!B160/VLOOKUP(B160,Tools!A:C,3,0) -> 0.003440523815 | D160: =Orders!C160/VLOOKUP(B160,Tools!A:C,3,0) -> 0.004205084663 | E160: =Orders!D160/VLOOKUP(B160,Tools!A:C,3,0) -> 0.003567950623
A161: =Orders!A161 -> CT5802839 | B161: =VLOOKUP(A161,'Product-tool'!A:B,2,0) -> Tool 19 | C161: =Orders!B161/VLOOKUP(B161,Tools!A:C,3,0) -> 0.1146734854 | D161: =Orders!C161/VLOOKUP(B161,Tools!A:C,3,0) -> 0.1479150275 | E161: =Orders!D161/VLOOKUP(B161,Tools!A:C,3,0) -> 0.1216561762
A162: =Orders!A162 -> CT5819298 | B162: =VLOOKUP(A162,'Product-tool'!A:B,2,0) -> Tool 20 | C162: =Orders!B162/VLOOKUP(B162,Tools!A:C,3,0) -> 0.0256127884 | D162: =Orders!C162/VLOOKUP(B162,Tools!A:C,3,0) -> 0.03160184837 | E162: =Orders!D162/VLOOKUP(B162,Tools!A:C,3,0) -> 0.02663220286
A163: =Orders!A163 -> CT5829315 | B163: =VLOOKUP(A163,'Product-tool'!A:B,2,0) -> Tool 18 | C163: =Orders!B163/VLOOKUP(B163,Tools!A:C,3,0) -> 0.1189285714 | D163: =Orders!C163/VLOOKUP(B163,Tools!A:C,3,0) -> 0.0925 | E163: =Orders!D163/VLOOKUP(B163,Tools!A:C,3,0) -> 0.09964285714
A164: =Orders!A164 -> CT5869387 | B164: =VLOOKUP(A164,'Product-tool'!A:B,2,0) -> Tool 19 | C164: =Orders!B164/VLOOKUP(B164,Tools!A:C,3,0) -> 0.7073170732 | D164: =Orders!C164/VLOOKUP(B164,Tools!A:C,3,0) -> 1.04297797 | E164: =Orders!D164/VLOOKUP(B164,Tools!A:C,3,0) -> 0.8071400472
A165: =Orders!A165 -> CT588550 | B165: =VLOOKUP(A165,'Product-tool'!A:B,2,0) -> Tool 11 | C165: =Orders!B165/VLOOKUP(B165,Tools!A:C,3,0) -> 0.3553149606 | D165: =Orders!C165/VLOOKUP(B165,Tools!A:C,3,0) -> 0.217519685 | E165: =Orders!D165/VLOOKUP(B165,Tools!A:C,3,0) -> 0.2721456693
A166: =Orders!A166 -> CT5885641 | B166: =VLOOKUP(A166,'Product-tool'!A:B,2,0) -> Tool 18 | C166: =Orders!B166/VLOOKUP(B166,Tools!A:C,3,0) -> 1.237857143 | D166: =Orders!C166/VLOOKUP(B166,Tools!A:C,3,0) -> 0.9975 | E166: =Orders!D166/VLOOKUP(B166,Tools!A:C,3,0) -> 1.052857143
A167: =Orders!A167 -> CT593521 | B167: =VLOOKUP(A167,'Product-tool'!A:B,2,0) -> Tool 18 | C167: =Orders!B167/VLOOKUP(B167,Tools!A:C,3,0) -> 20.7775 | D167: =Orders!C167/VLOOKUP(B167,Tools!A:C,3,0) -> 25.83321429 | E167: =Orders!D167/VLOOKUP(B167,Tools!A:C,3,0) -> 21.62071429
A168: =Orders!A168 -> CT5932817 | B168: =VLOOKUP(A168,'Product-tool'!A:B,2,0) -> Tool 20 | C168: =Orders!B168/VLOOKUP(B168,Tools!A:C,3,0) -> 0.01694776546 | D168: =Orders!C168/VLOOKUP(B168,Tools!A:C,3,0) -> 0.01809460673 | E168: =Orders!D168/VLOOKUP(B168,Tools!A:C,3,0) -> 0.01631063142
A169: =Orders!A169 -> CT5982395 | B169: =VLOOKUP(A169,'Product-tool'!A:B,2,0) -> Tool 4 | C169: =Orders!B169/VLOOKUP(B169,Tools!A:C,3,0) -> 0.1237067027 | D169: =Orders!C169/VLOOKUP(B169,Tools!A:C,3,0) -> 0.1336032389 | E169: =Orders!D169/VLOOKUP(B169,Tools!A:C,3,0) -> 0.1201079622
A170: =Orders!A170 -> CT6358073 | B170: =VLOOKUP(A170,'Product-tool'!A:B,2,0) -> Tool 20 | C170: =Orders!B170/VLOOKUP(B170,Tools!A:C,3,0) -> 0.003185670199 | D170: =Orders!C170/VLOOKUP(B170,Tools!A:C,3,0) -> 0.003440523815 | E170: =Orders!D170/VLOOKUP(B170,Tools!A:C,3,0) -> 0.003058243391
A171: =Orders!A171 -> CT6438604 | B171: =VLOOKUP(A171,'Product-tool'!A:B,2,0) -> Tool 20 | C171: =Orders!B171/VLOOKUP(B171,Tools!A:C,3,0) -> 0.001019414464 | D171: =Orders!C171/VLOOKUP(B171,Tools!A:C,3,0) -> 0.001529121696 | E171: =Orders!D171/VLOOKUP(B171,Tools!A:C,3,0) -> 0.001146841272
A172: =Orders!A172 -> CT6445143 | B172: =VLOOKUP(A172,'Product-tool'!A:B,2,0) -> Tool 20 | C172: =Orders!B172/VLOOKUP(B172,Tools!A:C,3,0) -> 0.5722737945 | D172: =Orders!C172/VLOOKUP(B172,Tools!A:C,3,0) -> 0.8464962853 | E172: =Orders!D172/VLOOKUP(B172,Tools!A:C,3,0) -> 0.6542092321
A173: =Orders!A173 -> CT823663 | B173: =VLOOKUP(A173,'Product-tool'!A:B,2,0) -> Tool 7 | C173: =Orders!B173/VLOOKUP(B173,Tools!A:C,3,0) -> 0.16921875 | D173: =Orders!C173/VLOOKUP(B173,Tools!A:C,3,0) -> 0.125 | E173: =Orders!D173/VLOOKUP(B173,Tools!A:C,3,0) -> 0.13890625
A174: =Orders!A174 -> DA2128864 | B174: =VLOOKUP(A174,'Product-tool'!A:B,2,0) -> Tool 5 | C174: =Orders!B174/VLOOKUP(B174,Tools!A:C,3,0) -> 3.333333333 | D174: =Orders!C174/VLOOKUP(B174,Tools!A:C,3,0) -> 3.623333333 | E174: =Orders!D174/VLOOKUP(B174,Tools!A:C,3,0) -> 3.241666667
A175: =Orders!A175 -> DA5685201 | B175: =VLOOKUP(A175,'Product-tool'!A:B,2,0) -> Tool 1 | C175: =Orders!B175/VLOOKUP(B175,Tools!A:C,3,0) -> 0.1108333333 | D175: =Orders!C175/VLOOKUP(B175,Tools!A:C,3,0) -> 0.07166666667 | E175: =Orders!D175/VLOOKUP(B175,Tools!A:C,3,0) -> 0.08666666667
A176: =Orders!A176 -> DP0098702 | B176: =VLOOKUP(A176,'Product-tool'!A:B,2,0) -> Tool 17 | C176: =Orders!B176/VLOOKUP(B176,Tools!A:C,3,0) -> 1.143970588 | D176: =Orders!C176/VLOOKUP(B176,Tools!A:C,3,0) -> 1.474705882 | E176: =Orders!D176/VLOOKUP(B176,Tools!A:C,3,0) -> 1.213088235
A177: =Orders!A177 -> DP087138 | B177: =VLOOKUP(A177,'Product-tool'!A:B,2,0) -> Tool 14 | C177: =Orders!B177/VLOOKUP(B177,Tools!A:C,3,0) -> 13.04956522 | D177: =Orders!C177/VLOOKUP(B177,Tools!A:C,3,0) -> 18.7573913 | E177: =Orders!D177/VLOOKUP(B177,Tools!A:C,3,0) -> 14.68
A178: =Orders!A178 -> DP1792938 | B178: =VLOOKUP(A178,'Product-tool'!A:B,2,0) -> Tool 15 | C178: =Orders!B178/VLOOKUP(B178,Tools!A:C,3,0) -> 5.922727273 | D178: =Orders!C178/VLOOKUP(B178,Tools!A:C,3,0) -> 8.443181818 | E178: =Orders!D178/VLOOKUP(B178,Tools!A:C,3,0) -> 6.632272727
A179: =Orders!A179 -> DP2403779 | B179: =VLOOKUP(A179,'Product-tool'!A:B,2,0) -> Tool 15 | C179: =Orders!B179/VLOOKUP(B179,Tools!A:C,3,0) -> 2.016818182 | D179: =Orders!C179/VLOOKUP(B179,Tools!A:C,3,0) -> 1.800227273 | E179: =Orders!D179/VLOOKUP(B179,Tools!A:C,3,0) -> 1.791136364
A180: =Orders!A180 -> DP2404504 | B180: =VLOOKUP(A180,'Product-tool'!A:B,2,0) -> Tool 3 | C180: =Orders!B180/VLOOKUP(B180,Tools!A:C,3,0) -> 0.2429166667 | D180: =Orders!C180/VLOOKUP(B180,Tools!A:C,3,0) -> 0.41125 | E180: =Orders!D180/VLOOKUP(B180,Tools!A:C,3,0) -> 0.3004166667
A181: =Orders!A181 -> DP4769417 | B181: =VLOOKUP(A181,'Product-tool'!A:B,2,0) -> Tool 17 | C181: =Orders!B181/VLOOKUP(B181,Tools!A:C,3,0) -> 0.2413235294 | D181: =Orders!C181/VLOOKUP(B181,Tools!A:C,3,0) -> 0.2002941176 | E181: =Orders!D181/VLOOKUP(B181,Tools!A:C,3,0) -> 0.2077941176
A182: =Orders!A182 -> DP4764853 | B182: =VLOOKUP(A182,'Product-tool'!A:B,2,0) -> Tool 18 | C182: =Orders!B182/VLOOKUP(B182,Tools!A:C,3,0) -> 6.753928571 | D182: =Orders!C182/VLOOKUP(B182,Tools!A:C,3,0) -> 7.3525 | E182: =Orders!D182/VLOOKUP(B182,Tools!A:C,3,0) -> 6.573928571
A183: =Orders!A183 -> DP5007199 | B183: =VLOOKUP(A183,'Product-tool'!A:B,2,0) -> Tool 1 | C183: =Orders!B183/VLOOKUP(B183,Tools!A:C,3,0) -> 33.71833333 | D183: =Orders!C183/VLOOKUP(B183,Tools!A:C,3,0) -> 32.7375 | E183: =Orders!D183/VLOOKUP(B183,Tools!A:C,3,0) -> 31.0925
A184: =Orders!A184 -> DP5383174 | B184: =VLOOKUP(A184,'Product-tool'!A:B,2,0) -> Tool 1 | C184: =Orders!B184/VLOOKUP(B184,Tools!A:C,3,0) -> 4.096666667 | D184: =Orders!C184/VLOOKUP(B184,Tools!A:C,3,0) -> 4.358333333 | E184: =Orders!D184/VLOOKUP(B184,Tools!A:C,3,0) -> 3.943333333
A185: =Orders!A185 -> DP5698799 | B185: =VLOOKUP(A185,'Product-tool'!A:B,2,0) -> Tool 1 | C185: =Orders!B185/VLOOKUP(B185,Tools!A:C,3,0) -> 0.8291666667 | D185: =Orders!C185/VLOOKUP(B185,Tools!A:C,3,0) -> 0.5383333333 | E185: =Orders!D185/VLOOKUP(B185,Tools!A:C,3,0) -> 0.6491666667
A186: =Orders!A186 -> DP5908334 | B186: =VLOOKUP(A186,'Product-tool'!A:B,2,0) -> Tool 1 | C186: =Orders!B186/VLOOKUP(B186,Tools!A:C,3,0) -> 29.48916667 | D186: =Orders!C186/VLOOKUP(B186,Tools!A:C,3,0) -> 31.6125 | E186: =Orders!D186/VLOOKUP(B186,Tools!A:C,3,0) -> 28.48916667
A187: =Orders!A187 -> DP638679 | B187: =VLOOKUP(A187,'Product-tool'!A:B,2,0) -> Tool 18 | C187: =Orders!B187/VLOOKUP(B187,Tools!A:C,3,0) -> 0.03392857143 | D187: =Orders!C187/VLOOKUP(B187,Tools!A:C,3,0) -> 0.02214285714 | E187: =Orders!D187/VLOOKUP(B187,Tools!A:C,3,0) -> 0.02678571429
A188: =Orders!A188 -> FR0061274 | B188: =VLOOKUP(A188,'Product-tool'!A:B,2,0) -> Tool 11 | C188: =Orders!B188/VLOOKUP(B188,Tools!A:C,3,0) -> 0.03543307087 | D188: =Orders!C188/VLOOKUP(B188,Tools!A:C,3,0) -> 0.03395669291 | E188: =Orders!D188/VLOOKUP(B188,Tools!A:C,3,0) -> 0.03248031496
A189: =Orders!A189 -> FR009628 | B189: =VLOOKUP(A189,'Product-tool'!A:B,2,0) -> Tool 11 | C189: =Orders!B189/VLOOKUP(B189,Tools!A:C,3,0) -> 12.35728346 | D189: =Orders!C189/VLOOKUP(B189,Tools!A:C,3,0) -> 19.56200787 | E189: =Orders!D189/VLOOKUP(B189,Tools!A:C,3,0) -> 14.68405512
A190: =Orders!A190 -> FR0362571 | B190: =VLOOKUP(A190,'Product-tool'!A:B,2,0) -> Tool 11 | C190: =Orders!B190/VLOOKUP(B190,Tools!A:C,3,0) -> 6.847933071 | D190: =Orders!C190/VLOOKUP(B190,Tools!A:C,3,0) -> 8.409940945 | E190: =Orders!D190/VLOOKUP(B190,Tools!A:C,3,0) -> 7.080216535
A191: =Orders!A191 -> FR0614261 | B191: =VLOOKUP(A191,'Product-tool'!A:B,2,0) -> Tool 11 | C191: =Orders!B191/VLOOKUP(B191,Tools!A:C,3,0) -> 1.123523622 | D191: =Orders!C191/VLOOKUP(B191,Tools!A:C,3,0) -> 0.7549212598 | E191: =Orders!D191/VLOOKUP(B191,Tools!A:C,3,0) -> 0.8902559055
A192: =Orders!A192 -> FR0622263 | B192: =VLOOKUP(A192,'Product-tool'!A:B,2,0) -> Tool 11 | C192: =Orders!B192/VLOOKUP(B192,Tools!A:C,3,0) -> 0.2623031496 | D192: =Orders!C192/VLOOKUP(B192,Tools!A:C,3,0) -> 0.3853346457 | E192: =Orders!D192/VLOOKUP(B192,Tools!A:C,3,0) -> 0.2987204724
A193: =Orders!A193 -> FR066151 | B193: =VLOOKUP(A193,'Product-tool'!A:B,2,0) -> Tool 4 | C193: =Orders!B193/VLOOKUP(B193,Tools!A:C,3,0) -> 0.6171839856 | D193: =Orders!C193/VLOOKUP(B193,Tools!A:C,3,0) -> 1.056680162 | E193: =Orders!D193/VLOOKUP(B193,Tools!A:C,3,0) -> 0.7678812416
A194: =Orders!A194 -> FR0667973 | B194: =VLOOKUP(A194,'Product-tool'!A:B,2,0) -> Tool 11 | C194: =Orders!B194/VLOOKUP(B194,Tools!A:C,3,0) -> 0.8198818898 | D194: =Orders!C194/VLOOKUP(B194,Tools!A:C,3,0) -> 0.8996062992 | E194: =Orders!D194/VLOOKUP(B194,Tools!A:C,3,0) -> 0.8011811024
A195: =Orders!A195 -> FR0679719 | B195: =VLOOKUP(A195,'Product-tool'!A:B,2,0) -> Tool 10 | C195: =Orders!B195/VLOOKUP(B195,Tools!A:C,3,0) -> 0.06967741935 | D195: =Orders!C195/VLOOKUP(B195,Tools!A:C,3,0) -> 0.04064516129 | E195: =Orders!D195/VLOOKUP(B195,Tools!A:C,3,0) -> 0.05225806452
A196: =Orders!A196 -> FR0696557 | B196: =VLOOKUP(A196,'Product-tool'!A:B,2,0) -> Tool 15 | C196: =Orders!B196/VLOOKUP(B196,Tools!A:C,3,0) -> 0.4209090909 | D196: =Orders!C196/VLOOKUP(B196,Tools!A:C,3,0) -> 0.7184090909 | E196: =Orders!D196/VLOOKUP(B196,Tools!A:C,3,0) -> 0.5229545455
A197: =Orders!A197 -> FR0905418 | B197: =VLOOKUP(A197,'Product-tool'!A:B,2,0) -> Tool 15 | C197: =Orders!B197/VLOOKUP(B197,Tools!A:C,3,0) -> 0.6136363636 | D197: =Orders!C197/VLOOKUP(B197,Tools!A:C,3,0) -> 0.8104545455 | E197: =Orders!D197/VLOOKUP(B197,Tools!A:C,3,0) -> 0.6590909091
A198: =Orders!A198 -> FR0919209 | B198: =VLOOKUP(A198,'Product-tool'!A:B,2,0) -> Tool 11 | C198: =Orders!B198/VLOOKUP(B198,Tools!A:C,3,0) -> 1.657480315 | D198: =Orders!C198/VLOOKUP(B198,Tools!A:C,3,0) -> 1.098917323 | E198: =Orders!D198/VLOOKUP(B198,Tools!A:C,3,0) -> 1.306594488
A199: =Orders!A199 -> FR0935436 | B199: =VLOOKUP(A199,'Product-tool'!A:B,2,0) -> Tool 11 | C199: =Orders!B199/VLOOKUP(B199,Tools!A:C,3,0) -> 0.05757874016 | D199: =Orders!C199/VLOOKUP(B199,Tools!A:C,3,0) -> 0.09251968504 | E199: =Orders!D199/VLOOKUP(B199,Tools!A:C,3,0) -> 0.06938976378
A200: =Orders!A200 -> FR1379592 | B200: =VLOOKUP(A200,'Product-tool'!A:B,2,0) -> Tool 15 | C200: =Orders!B200/VLOOKUP(B200,Tools!A:C,3,0) -> 0.1868181818 | D200: =Orders!C200/VLOOKUP(B200,Tools!A:C,3,0) -> 0.1590909091 | E200: =Orders!D200/VLOOKUP(B200,Tools!A:C,3,0) -> 0.1627272727
... 1300 more rows

Sheet Sum of needed tool time
A1: ='Tool time needed per product'!B1 -> Tool | B1: ='Tool time needed per product'!C1 -> Week1 | C1: ='Tool time needed per product'!D1 -> Week2 | D1: ='Tool time needed per product'!E1 -> Week3
A2: Tool 1 | B2: =SUMIF('Tool time needed per product'!B:B,A2,'Tool time needed per product'!C:C) -> 68.24416667 | C2: =SUMIF('Tool time needed per product'!B:B,A2,'Tool time needed per product'!D:D) -> 69.31833333 | D2: =SUMIF('Tool time needed per product'!B:B,A2,'Tool time needed per product'!E:E) -> 64.26083333
A3: Tool 2 | B3: =SUMIF('Tool time needed per product'!B:B,A3,'Tool time needed per product'!C:C) -> 75.06615385 | C3: =SUMIF('Tool time needed per product'!B:B,A3,'Tool time needed per product'!D:D) -> 88.54038462 | D3: =SUMIF('Tool time needed per product'!B:B,A3,'Tool time needed per product'!E:E) -> 76.03192308
A4: Tool 3 | B4: =SUMIF('Tool time needed per product'!B:B,A4,'Tool time needed per product'!C:C) -> 3.7175 | C4: =SUMIF('Tool time needed per product'!B:B,A4,'Tool time needed per product'!D:D) -> 4.9475 | D4: =SUMIF('Tool time needed per product'!B:B,A4,'Tool time needed per product'!E:E) -> 4.010833333
A5: Tool 4 | B5: =SUMIF('Tool time needed per product'!B:B,A5,'Tool time needed per product'!C:C) -> 96.22627081 | C5: =SUMIF('Tool time needed per product'!B:B,A5,'Tool time needed per product'!D:D) -> 134.1016644 | D5: =SUMIF('Tool time needed per product'!B:B,A5,'Tool time needed per product'!E:E) -> 89.91947818
A6: Tool 5 | B6: =SUMIF('Tool time needed per product'!B:B,A6,'Tool time needed per product'!C:C) -> 89.605 | C6: =SUMIF('Tool time needed per product'!B:B,A6,'Tool time needed per product'!D:D) -> 92.7075 | D6: =SUMIF('Tool time needed per product'!B:B,A6,'Tool time needed per product'!E:E) -> 85.11083333
A7: Tool 6 | B7: =SUMIF('Tool time needed per product'!B:B,A7,'Tool time needed per product'!C:C) -> 7.837068966 | C7: =SUMIF('Tool time needed per product'!B:B,A7,'Tool time needed per product'!D:D) -> 11.67465517 | D7: =SUMIF('Tool time needed per product'!B:B,A7,'Tool time needed per product'!E:E) -> 8.994827586
A8: Tool 7 | B8: =SUMIF('Tool time needed per product'!B:B,A8,'Tool time needed per product'!C:C) -> 9.31390625 | C8: =SUMIF('Tool time needed per product'!B:B,A8,'Tool time needed per product'!D:D) -> 8.6803125 | D8: =SUMIF('Tool time needed per product'!B:B,A8,'Tool time needed per product'!E:E) -> 8.43140625
A9: Tool 8 | B9: =SUMIF('Tool time needed per product'!B:B,A9,'Tool time needed per product'!C:C) -> 157.1428571 | C9: =SUMIF('Tool time needed per product'!B:B,A9,'Tool time needed per product'!D:D) -> 205.552551 | D9: =SUMIF('Tool time needed per product'!B:B,A9,'Tool time needed per product'!E:E) -> 167.9433673
A10: Tool 9 | B10: =SUMIF('Tool time needed per product'!B:B,A10,'Tool time needed per product'!C:C) -> 88.84583333 | C10: =SUMIF('Tool time needed per product'!B:B,A10,'Tool time needed per product'!D:D) -> 115.0041667 | D10: =SUMIF('Tool time needed per product'!B:B,A10,'Tool time needed per product'!E:E) -> 94.43125
A11: Tool 10 | B11: =SUMIF('Tool time needed per product'!B:B,A11,'Tool time needed per product'!C:C) -> 80.35548387 | C11: =SUMIF('Tool time needed per product'!B:B,A11,'Tool time needed per product'!D:D) -> 104.6058065 | D11: =SUMIF('Tool time needed per product'!B:B,A11,'Tool time needed per product'!E:E) -> 85.66064516
A12: Tool 11 | B12: =SUMIF('Tool time needed per product'!B:B,A12,'Tool time needed per product'!C:C) -> 89.59694882 | C12: =SUMIF('Tool time needed per product'!B:B,A12,'Tool time needed per product'!D:D) -> 116.0418307 | D12: =SUMIF('Tool time needed per product'!B:B,A12,'Tool time needed per product'!E:E) -> 101.4212598
A13: Tool 12 | B13: =SUMIF('Tool time needed per product'!B:B,A13,'Tool time needed per product'!C:C) -> 11.90375 | C13: =SUMIF('Tool time needed per product'!B:B,A13,'Tool time needed per product'!D:D) -> 15.0585 | D13: =SUMIF('Tool time needed per product'!B:B,A13,'Tool time needed per product'!E:E) -> 12.49975
A14: Tool 13 | B14: =SUMIF('Tool time needed per product'!B:B,A14,'Tool time needed per product'!C:C) -> 10.04708333 | C14: =SUMIF('Tool time needed per product'!B:B,A14,'Tool time needed per product'!D:D) -> 9.1 | D14: =SUMIF('Tool time needed per product'!B:B,A14,'Tool time needed per product'!E:E) -> 8.98125
A15: Tool 14 | B15: =SUMIF('Tool time needed per product'!B:B,A15,'Tool time needed per product'!C:C) -> 36.16695652 | C15: =SUMIF('Tool time needed per product'!B:B,A15,'Tool time needed per product'!D:D) -> 47.39130435 | D15: =SUMIF('Tool time needed per product'!B:B,A15,'Tool time needed per product'!E:E) -> 38.69130435
A16: Tool 15 | B16: =SUMIF('Tool time needed per product'!B:B,A16,'Tool time needed per product'!C:C) -> 43.05522727 | C16: =SUMIF('Tool time needed per product'!B:B,A16,'Tool time needed per product'!D:D) -> 51.58454545 | D16: =SUMIF('Tool time needed per product'!B:B,A16,'Tool time needed per product'!E:E) -> 43.95772727
A17: Tool 16 | B17: =SUMIF('Tool time needed per product'!B:B,A17,'Tool time needed per product'!C:C) -> 12.01308824 | C17: =SUMIF('Tool time needed per product'!B:B,A17,'Tool time needed per product'!D:D) -> 14.04794118 | D17: =SUMIF('Tool time needed per product'!B:B,A17,'Tool time needed per product'!E:E) -> 12.115
A18: Tool 17 | B18: =SUMIF('Tool time needed per product'!B:B,A18,'Tool time needed per product'!C:C) -> 6.129558824 | C18: =SUMIF('Tool time needed per product'!B:B,A18,'Tool time needed per product'!D:D) -> 7.691617647 | D18: =SUMIF('Tool time needed per product'!B:B,A18,'Tool time needed per product'!E:E) -> 6.409117647
A19: Tool 18 | B19: =SUMIF('Tool time needed per product'!B:B,A19,'Tool time needed per product'!C:C) -> 150.1317857 | C19: =SUMIF('Tool time needed per product'!B:B,A19,'Tool time needed per product'!D:D) -> 165.2178571 | D19: =SUMIF('Tool time needed per product'!B:B,A19,'Tool time needed per product'!E:E) -> 146.9014286
A20: Tool 19 | B20: =SUMIF('Tool time needed per product'!B:B,A20,'Tool time needed per product'!C:C) -> 49.35483871 | C20: =SUMIF('Tool time needed per product'!B:B,A20,'Tool time needed per product'!D:D) -> 55.12086939 | D20: =SUMIF('Tool time needed per product'!B:B,A20,'Tool time needed per product'!E:E) -> 48.64329268
A21: Tool 20 | B21: =SUMIF('Tool time needed per product'!B:B,A21,'Tool time needed per product'!C:C) -> 33.61022229 | C21: =SUMIF('Tool time needed per product'!B:B,A21,'Tool time needed per product'!D:D) -> 39.46841494 | D21: =SUMIF('Tool time needed per product'!B:B,A21,'Tool time needed per product'!E:E) -> 33.96561566

Sheet Tools loading
A1: ='Tool time needed per product'!B1 -> Tool | B1: ='Tool time needed per product'!C1 -> Week1 | C1: ='Tool time needed per product'!D1 -> Week2 | D1: ='Tool time needed per product'!E1 -> Week3
A2: Tool 1 | B2: ='Sum of needed tool time'!B2/'Tools avail'!B3 -> 0.6037258733 | C2: ='Sum of needed tool time'!C2/'Tools avail'!C3 -> 0.6132285494 | D2: ='Sum of needed tool time'!D2/'Tools avail'!D3 -> 0.5684870901
A3: Tool2 | B3: ='Sum of needed tool time'!B3/'Tools avail'!B4 -> 1.033755476 | C3: ='Sum of needed tool time'!C3/'Tools avail'!C4 -> 1.219312603 | D3: ='Sum of needed tool time'!D3/'Tools avail'!D4 -> 1.047055335
A4: Tool 3 | B4: ='Sum of needed tool time'!B4/'Tools avail'!B5 -> 0.03995784143 | C4: ='Sum of needed tool time'!C4/'Tools avail'!C5 -> 0.05317859326 | D4: ='Sum of needed tool time'!D4/'Tools avail'!D5 -> 0.04311075785
A5: Tool 4 | B5: ='Sum of needed tool time'!B5/'Tools avail'!B6 -> 0.972894271 | C5: ='Sum of needed tool time'!C5/'Tools avail'!C6 -> 1.355832871 | D5: ='Sum of needed tool time'!D5/'Tools avail'!D6 -> 0.9091295385
A6: Tool 5 | B6: ='Sum of needed tool time'!B6/'Tools avail'!B7 -> 0.7926956914 | C6: ='Sum of needed tool time'!C6/'Tools avail'!C7 -> 0.8201421328 | D6: ='Sum of needed tool time'!D6/'Tools avail'!D7 -> 0.7529377922
A7: Tool 6 | B7: ='Sum of needed tool time'!B7/'Tools avail'!B8 -> 0.08148711924 | C7: ='Sum of needed tool time'!C7/'Tools avail'!C8 -> 0.1213890068 | D7: ='Sum of needed tool time'!D7/'Tools avail'!D8 -> 0.09352509099
A8: Tool 7 | B8: ='Sum of needed tool time'!B8/'Tools avail'!B9 -> 0.1042180161 | C8: ='Sum of needed tool time'!C8/'Tools avail'!C9 -> 0.09712841462 | D8: ='Sum of needed tool time'!D8/'Tools avail'!D9 -> 0.09434327648
A9: Tool 8 | B9: ='Sum of needed tool time'!B9/'Tools avail'!B10 -> 1.814838776 | C9: ='Sum of needed tool time'!C9/'Tools avail'!C10 -> 2.373921073 | D9: ='Sum of needed tool time'!D9/'Tools avail'!D10 -> 1.939573588
A10: Tool 9 | B10: ='Sum of needed tool time'!B10/'Tools avail'!B11 -> 0.7785336983 | C10: ='Sum of needed tool time'!C10/'Tools avail'!C11 -> 1.007752596 | D10: ='Sum of needed tool time'!D10/'Tools avail'!D11 -> 0.8274773001
A11: Tool 10 | B11: ='Sum of needed tool time'!B11/'Tools avail'!B12 -> 0.6871742433 | C11: ='Sum of needed tool time'!C11/'Tools avail'!C12 -> 0.8945551994 | D11: ='Sum of needed tool time'!D11/'Tools avail'!D12 -> 0.7325422757
A12: Tool 11 | B12: ='Sum of needed tool time'!B12/'Tools avail'!B13 -> 0.9985975761 | C12: ='Sum of needed tool time'!C12/'Tools avail'!C13 -> 1.293337467 | D12: ='Sum of needed tool time'!D12/'Tools avail'!D13 -> 1.130384746
A13: Tool 12 | B13: ='Sum of needed tool time'!B13/'Tools avail'!B14 -> 0.1281197678 | C13: ='Sum of needed tool time'!C13/'Tools avail'!C14 -> 0.1620742642 | D13: ='Sum of needed tool time'!D13/'Tools avail'!D14 -> 0.1345345011
A14: Tool 13 | B14: ='Sum of needed tool time'!B14/'Tools avail'!B15 -> 0.1358213606 | C14: ='Sum of needed tool time'!C14/'Tools avail'!C15 -> 0.1230182273 | D14: ='Sum of needed tool time'!D14/'Tools avail'!D15 -> 0.121412907
A15: Tool 14 | B15: ='Sum of needed tool time'!B15/'Tools avail'!B16 -> 0.3754765249 | C15: ='Sum of needed tool time'!C15/'Tools avail'!C16 -> 0.4920049675 | D15: ='Sum of needed tool time'!D15/'Tools avail'!D16 -> 0.4016836886
A16: Tool 15 | B16: ='Sum of needed tool time'!B16/'Tools avail'!B17 -> 0.4952988372 | C16: ='Sum of needed tool time'!C16/'Tools avail'!C17 -> 0.5934184303 | D16: ='Sum of needed tool time'!D16/'Tools avail'!D17 -> 0.5056810191
A17: Tool 16 | B17: ='Sum of needed tool time'!B17/'Tools avail'!B18 -> 0.1230555014 | C17: ='Sum of needed tool time'!C17/'Tools avail'!C18 -> 0.1438994213 | D17: ='Sum of needed tool time'!D17/'Tools avail'!D18 -> 0.1240994298
A18: Tool 17 | B18: ='Sum of needed tool time'!B18/'Tools avail'!B19 -> 0.06013885986 | C18: ='Sum of needed tool time'!C18/'Tools avail'!C19 -> 0.07546466705 | D18: ='Sum of needed tool time'!D18/'Tools avail'!D19 -> 0.06288169167
A19: Tool 18 | B19: ='Sum of needed tool time'!B19/'Tools avail'!B20 -> 1.265038371 | C19: ='Sum of needed tool time'!C19/'Tools avail'!C20 -> 1.392156417 | D19: ='Sum of needed tool time'!D19/'Tools avail'!D20 -> 1.237818781
A20: Tool 19 | B20: ='Sum of needed tool time'!B20/'Tools avail'!B21 -> 0.4233115869 | C20: ='Sum of needed tool time'!C20/'Tools avail'!C21 -> 0.4727662638 | D20: ='Sum of needed tool time'!D20/'Tools avail'!D21 -> 0.4172087268
A21: Tool 20 | B21: ='Sum of needed tool time'!B21/'Tools avail'!B22 -> 0.2882715638 | C21: ='Sum of needed tool time'!C21/'Tools avail'!C22 -> 0.3385167047 | D21: ='Sum of needed tool time'!D21/'Tools avail'!D22 -> 0.2913197377
